Workbook

Sheet Intro
F2: Exploratory Software for Confidence Intervals
F3: ESCI Effect sizes | L3: www.thenewstatistics.com
G5: Geoff Cumming | N5: Copyright © Geoff Cumming 2011
H6: School of Psychological Science | N6: ESCI is free software: you can redistribute it and/or modify it under the terms of the GNU General Public License
H7: La Trobe University, Melbourne | N7: as published by the Free Software Foundation, either version 3 of the License, or (at your option) any later version.
H8: Australia 3086 | N8: This program is distributed in the hope that it will be useful, but WITHOUT ANY WARRANTY; without even the implied warranty of
H9: esci@latrobe.edu.au | N9: MERCHANTABILITY or FITNESS FOR A PARTICULAR PURPOSE. Scroll down to see the GNU General Public License for more details.
B12: ► ESCI Effect sizes accompanies the book Understanding The New Statistics: Effect Sizes, Confidence Intervals, and Meta-analysis (Routledge, 2012)
B13: ► For help, see the book's Appendix A.
B14: ► Use the tabs below to go to your page of choice.
B15: ► At any page, explore--with guidance from the relevant chapters of the book.
B19: Click the tabs at the bottom of the screen to go to these pages:
C21: Correlations See Chapter 14. Enter values and see a CI figure for Pearson's r correlations.
C23: Diff correlations See Chapter 14. Enter values and see a CI figure for the difference between two independent Pearson's r correlations.
C25: Proportions See Chapter 14. Enter values and see a CI figure for proportions.
C27: Diff proportions See Chapter 14. Enter values and see a CI figure for the difference between two independent proportions.
C29: Means See Chapter 14. Enter values and see a CI figure for means, for any dependent variable with interval scaling.
C31: Paired means See Chapter 14. Enter values and see a CI figure for mean differences, for paired data (i.e. a repeated measure).
C33: 2 ind means same variance See Chapter 14. Enter values and see a CI figure for differences between means, two independent groups design, variances assumed equal.
C35: 2 ind means general See Chapter 14. Enter values and see a CI figure for differences between means, two independent groups design, variances not assumed equal.
C37: Known CI limits See Chapter 14. Enter values and see a CI figure when the point estimate and lower and upper CI limits are known.
B44: Please scroll down to see the GNU General Public License below
B68: GNU GENERAL PUBLIC LICENSE
B69: Version 3, 29 June 2007
B71: Copyright (C) 2007 Free Software Foundation, Inc. <http://fsf.org/>
B72: Everyone is permitted to copy and distribute verbatim copies
B73: of this license document, but changing it is not allowed.
B75: Preamble
B77: The GNU General Public License is a free, copyleft license for
B78: software and other kinds of works.
B80: The licenses for most software and other practical works are designed
B81: to take away your freedom to share and change the works. By contrast,
B82: the GNU General Public License is intended to guarantee your freedom to
B83: share and change all versions of a program--to make sure it remains free
B84: software for all its users. We, the Free Software Foundation, use the
B85: GNU General Public License for most of our software; it applies also to
B86: any other work released this way by its authors. You can apply it to
B87: your programs, too.
B89: When we speak of free software, we are referring to freedom, not
B90: price. Our General Public Licenses are designed to make sure that you
B91: have the freedom to distribute copies of free software (and charge for
B92: them if you wish), that you receive source code or can get it if you
B93: want it, that you can change the software or use pieces of it in new
B94: free programs, and that you know you can do these things.
B96: To protect your rights, we need to prevent others from denying you
B97: these rights or asking you to surrender the rights. Therefore, you have
B98: certain responsibilities if you distribute copies of the software, or if
B99: you modify it: responsibilities to respect the freedom of others.
B101: For example, if you distribute copies of such a program, whether
B102: gratis or for a fee, you must pass on to the recipients the same
B103: freedoms that you received. You must make sure that they, too, receive
B104: or can get the source code. And you must show them these terms so they
B105: know their rights.
B107: Developers that use the GNU GPL protect your rights with two steps:
B108: (1) assert copyright on the software, and (2) offer you this License
B109: giving you legal permission to copy, distribute and/or modify it.
B111: For the developers' and authors' protection, the GPL clearly explains
B112: that there is no warranty for this free software. For both users' and
B113: authors' sake, the GPL requires that modified versions be marked as
B114: changed, so that their problems will not be attributed erroneously to
B115: authors of previous versions.
B117: Some devices are designed to deny users access to install or run
B118: modified versions of the software inside them, although the manufacturer
B119: can do so. This is fundamentally incompatible with the aim of
B120: protecting users' freedom to change the software. The systematic
B121: pattern of such abuse occurs in the area of products for individuals to
B122: use, which is precisely where it is most unacceptable. Therefore, we
B123: have designed this version of the GPL to prohibit the practice for those
B124: products. If such problems arise substantially in other domains, we
B125: stand ready to extend this provision to those domains in future versions
B126: of the GPL, as needed to protect the freedom of users.
B128: Finally, every program is threatened constantly by software patents.
B129: States should not allow patents to restrict development and use of
B130: software on general-purpose computers, but in those that do, we wish to
B131: avoid the special danger that patents applied to a free program could
B132: make it effectively proprietary. To prevent this, the GPL assures that
B133: patents cannot be used to render the program non-free.
B135: The precise terms and conditions for copying, distribution and
B136: modification follow.
B138: TERMS AND CONDITIONS
B140: 0. Definitions.
B142: "This License" refers to version 3 of the GNU General Public License.
B144: "Copyright" also means copyright-like laws that apply to other kinds of
B145: works, such as semiconductor masks.
B147: "The Program" refers to any copyrightable work licensed under this
B148: License. Each licensee is addressed as "you". "Licensees" and
B149: "recipients" may be individuals or organizations.
B151: To "modify" a work means to copy from or adapt all or part of the work
B152: in a fashion requiring copyright permission, other than the making of an
B153: exact copy. The resulting work is called a "modified version" of the
B154: earlier work or a work "based on" the earlier work.
B156: A "covered work" means either the unmodified Program or a work based
B157: on the Program.
B159: To "propagate" a work means to do anything with it that, without
B160: permission, would make you directly or secondarily liable for
B161: infringement under applicable copyright law, except executing it on a
B162: computer or modifying a private copy. Propagation includes copying,
B163: distribution (with or without modification), making available to the
B164: public, and in some countries other activities as well.
B166: To "convey" a work means any kind of propagation that enables other
B167: parties to make or receive copies. Mere interaction with a user through
B168: a computer network, with no transfer of a copy, is not conveying.
B170: An interactive user interface displays "Appropriate Legal Notices"
B171: to the extent that it includes a convenient and prominently visible
B172: feature that (1) displays an appropriate copyright notice, and (2)
B173: tells the user that there is no warranty for the work (except to the
B174: extent that warranties are provided), that licensees may convey the
B175: work under this License, and how to view a copy of this License. If
B176: the interface presents a list of user commands or options, such as a
B177: menu, a prominent item in the list meets this criterion.
B179: 1. Source Code.
B181: The "source code" for a work means the preferred form of the work
B182: for making modifications to it. "Object code" means any non-source
B183: form of a work.
B185: A "Standard Interface" means an interface that either is an official
B186: standard defined by a recognized standards body, or, in the case of
B187: interfaces specified for a particular programming language, one that
B188: is widely used among developers working in that language.
B190: The "System Libraries" of an executable work include anything, other
B191: than the work as a whole, that (a) is included in the normal form of
B192: packaging a Major Component, but which is not part of that Major
B193: Component, and (b) serves only to enable use of the work with that
B194: Major Component, or to implement a Standard Interface for which an
B195: implementation is available to the public in source code form. A
B196: "Major Component", in this context, means a major essential component
B197: (kernel, window system, and so on) of the specific operating system
B198: (if any) on which the executable work runs, or a compiler used to
B199: produce the work, or an object code interpreter used to run it.
B201: The "Corresponding Source" for a work in object code form means all
B202: the source code needed to generate, install, and (for an executable
B203: work) run the object code and to modify the work, including scripts to
B204: control those activities. However, it does not include the work's
B205: System Libraries, or general-purpose tools or generally available free
B206: programs which are used unmodified in performing those activities but
B207: which are not part of the work. For example, Corresponding Source
B208: includes interface definition files associated with source files for
B209: the work, and the source code for shared libraries and dynamically
B210: linked subprograms that the work is specifically designed to require,
B211: such as by intimate data communication or control flow between those
B212: subprograms and other parts of the work.
B214: The Corresponding Source need not include anything that users
B215: can regenerate automatically from other parts of the Corresponding
B216: Source.
B218: The Corresponding Source for a work in source code form is that
B219: same work.
B221: 2. Basic Permissions.
B223: All rights granted under this License are granted for the term of
B224: copyright on the Program, and are irrevocable provided the stated
B225: conditions are met. This License explicitly affirms your unlimited
B226: permission to run the unmodified Program. The output from running a
B227: covered work is covered by this License only if the output, given its
B228: content, constitutes a covered work. This License acknowledges your
B229: rights of fair use or other equivalent, as provided by copyright law.
B231: You may make, run and propagate covered works that you do not
B232: convey, without conditions so long as your license otherwise remains
B233: in force. You may convey covered works to others for the sole purpose
B234: of having them make modifications exclusively for you, or provide you
B235: with facilities for running those works, provided that you comply with
B236: the terms of this License in conveying all material for which you do
B237: not control copyright. Those thus making or running the covered works
B238: for you must do so exclusively on your behalf, under your direction
B239: and control, on terms that prohibit them from making any copies of
B240: your copyrighted material outside their relationship with you.
B242: Conveying under any other circumstances is permitted solely under
B243: the conditions stated below. Sublicensing is not allowed; section 10
B244: makes it unnecessary.
B246: 3. Protecting Users' Legal Rights From Anti-Circumvention Law.
B248: No covered work shall be deemed part of an effective technological
B249: measure under any applicable law fulfilling obligations under article
B250: 11 of the WIPO copyright treaty adopted on 20 December 1996, or
B251: similar laws prohibiting or restricting circumvention of such
B252: measures.
B254: When you convey a covered work, you waive any legal power to forbid
B255: circumvention of technological measures to the extent such circumvention
B256: is effected by exercising rights under this License with respect to
B257: the covered work, and you disclaim any intention to limit operation or
B258: modification of the work as a means of enforcing, against the work's
B259: users, your or third parties' legal rights to forbid circumvention of
B260: technological measures.
B262: 4. Conveying Verbatim Copies.
B264: You may convey verbatim copies of the Program's source code as you
B265: receive it, in any medium, provided that you conspicuously and
B266: appropriately publish on each copy an appropriate copyright notice;
B267: keep intact all notices stating that this License and any
B268: non-permissive terms added in accord with section 7 apply to the code;
B269: keep intact all notices of the absence of any warranty; and give all
B270: recipients a copy of this License along with the Program.
B272: You may charge any price or no price for each copy that you convey,
B273: and you may offer support or warranty protection for a fee.
B275: 5. Conveying Modified Source Versions.
B277: You may convey a work based on the Program, or the modifications to
B278: produce it from the Program, in the form of source code under the
B279: terms of section 4, provided that you also meet all of these conditions:
B281: a) The work must carry prominent notices stating that you modified
B282: it, and giving a relevant date.
B284: b) The work must carry prominent notices stating that it is
B285: released under this License and any conditions added under section
B286: 7. This requirement modifies the requirement in section 4 to
B287: "keep intact all notices".
B289: c) You must license the entire work, as a whole, under this
... 375 more rows

Sheet Correlations
D1: CIs for correlations | L1: =$F$11/10000 -> 0.0095 | M1: 0.0095 | N1: 0.0095 | O1: 0.0095 | P1: 0.0095 | Q1: 0.0095 | R1: 0.0095 | S1: 0.0095 | T1: 0.0095 | U1: 0.0095 | AE1: for C | AF1: 95
D2: Enter up to 10 correlations (r), each | U2: =$F$11/10000 -> 0.0095 | AG2: CI calculations
E3: with sample size (N) | U3: 0.0095 | AG3: crit z | AH3: =NORMSINV(0.5+F11/200) -> 1.959963985
D4: See a figure displaying correlations | U4: 0.0095 | AE4: OK? | AF4: r | AG4: trans r | AH4: SE z | AI4: trans LL | AJ4: trans UL
E5: and their approximate CIs | U5: 0.0095 | AE5: =IF(NOT(AND(ISNUMBER(C16),ISNUMBER(D16))),FALSE,AND(C16>=-1,C16<=1,D16>3,D16=INT(D16))) -> TRUE | AF5: =IF(AE5,IF(1-ABS(C16)<0.0000001,IF(C16>0,0.9999999,-0.9999999),C16),NA()) -> -0.9 | AG5: =0.5*LN((1+AF5)/(1-AF5)) -> -1.47221949 | AH5: =IF(AE5,1/SQRT(D16-3),NA()) -> 0.1924500897 | AI5: =AG5-AH5*$AH$3 -> -1.849414734 | AJ5: =AG5+AH5*$AH$3 -> -1.095024245
D6: CIs are calculated by using the | U6: 0.0095 | AE6: =IF(NOT(AND(ISNUMBER(C17),ISNUMBER(D17))),FALSE,AND(C17>=-1,C17<=1,D17>3,D17=INT(D17))) -> TRUE | AF6: 0.9 | AG6: =0.5*LN((1+AF6)/(1-AF6)) -> 1.47221949 | AH6: 0.1924500897 | AI6: =AG6-AH6*$AH$3 -> 1.095024245 | AJ6: =AG6+AH6*$AH$3 -> 1.849414734
E7: Fisher r to z transformation | U7: 0.0095 | AE7: TRUE | AF7: 0.6 | AG7: 0.6931471806 | AH7: 0.1924500897 | AI7: 0.3159519359 | AJ7: 1.070342425
U8: 0.0095 | AE8: TRUE | AF8: 0.3 | AG8: 0.3095196042 | AH8: 0.1924500897 | AI8: -0.06767564049 | AJ8: 0.6867148489
U9: 0.0095 | AE9: TRUE | AF9: 0 | AG9: 0 | AH9: 0.1924500897 | AI9: -0.3771952447 | AJ9: 0.3771952447
B10: 1 | C10: Level of confidence | U10: 0.0095 | AE10: TRUE | AF10: -0.9 | AG10: -1.47221949 | AH10: 0.0924500327 | AI10: -1.653418224 | AJ10: -1.291020755
E11: C | F11: =IF(AF1<100,AF1,99+(AF1-99)/10) -> 95 | U11: 0.0095 | AE11: TRUE | AF11: 0.9 | AG11: 1.47221949 | AH11: 0.0924500327 | AI11: 1.291020755 | AJ11: 1.653418224
U12: 0.0095 | AE12: TRUE | AF12: 0.6 | AG12: 0.6931471806 | AH12: 0.0924500327 | AI12: 0.5119484461 | AJ12: 0.874345915
U13: 0.0095 | AE13: TRUE | AF13: 0.3 | AG13: 0.3095196042 | AH13: 0.0924500327 | AI13: 0.1283208697 | AJ13: 0.4907183387
B14: 2 | C14: Input | F14: 3 CI limits | H14: 4 CI bars | U14: 0.0095 | AE14: TRUE | AF14: 0 | AG14: 0 | AH14: 0.0924500327 | AI14: -0.1811987345 | AJ14: 0.1811987345
C15: r | D15: N | F15: LL | G15: UL | H15: Left | I15: Right | J15: MOEav | U15: 0.0095
B16: 1 | C16: -0.9 | D16: 30 | F16: =IF(AE5,(EXP(2*AI5)-1)/(EXP(2*AI5)+1),"") -> -0.9516908063 | G16: =IF(AE5,(EXP(2*AJ5)-1)/(EXP(2*AJ5)+1),"") -> -0.7987045914 | H16: =IF(AE5,AG18,"") -> 0.05169080634 | I16: =IF(AE5,AH18,"") -> 0.1012954086 | J16: =IF(AE5,(AG18+AH18)/2,"") -> 0.07649310746 | U16: 0.0095 | AE16: For display
B17: 2 | C17: 0.9 | D17: 30 | F17: 0.7987045914 | G17: 0.9516908063 | H17: 0.1012954086 | I17: 0.05169080634 | J17: =IF(AE6,(AG19+AH19)/2,"") -> 0.07649310746 | U17: 0.0095 | AE17: r | AF17: y | AG17: L bars | AH17: R bars
B18: 3 | C18: 0.6 | D18: 30 | F18: 0.3058420678 | G18: 0.7895901951 | H18: 0.2941579322 | I18: 0.1895901951 | J18: 0.2418740637 | U18: 0.0095 | AE18: =IF(AE5,C16,NA()) -> -0.9 | AF18: 1 | AG18: =IF(ISNA(AE18),NA(),C16-F16) -> 0.05169080634 | AH18: =IF(ISNA(AE18),NA(),G16-C16) -> 0.1012954086
B19: 4 | C19: 0.3 | D19: 30 | F19: -0.06757251145 | G19: 0.5958674154 | H19: 0.3675725114 | I19: 0.2958674154 | J19: 0.3317199634 | U19: 0.0095 | AE19: 0.9 | AF19: 2 | AG19: 0.1012954086 | AH19: 0.05169080634
B20: 5 | C20: 0 | D20: 30 | F20: -0.3602692226 | G20: 0.3602692226 | H20: 0.3602692226 | I20: 0.3602692226 | J20: 0.3602692226 | U20: 0.0095 | AE20: 0.6 | AF20: 3 | AG20: 0.2941579322 | AH20: 0.1895901951
B21: 6 | C21: -0.9 | D21: 120 | F21: -0.9293251958 | G21: -0.8593936413 | H21: 0.0293251958 | I21: 0.04060635873 | J21: 0.03496577726 | U21: 0.0095 | AE21: 0.3 | AF21: 4 | AG21: 0.3675725114 | AH21: 0.2958674154
B22: 7 | C22: 0.9 | D22: 120 | F22: 0.8593936413 | G22: 0.9293251958 | H22: 0.04060635873 | I22: 0.0293251958 | J22: 0.03496577726 | U22: 0.0095 | AE22: 0 | AF22: 5 | AG22: 0.3602692226 | AH22: 0.3602692226
B23: 8 | C23: 0.6 | D23: 120 | F23: 0.4714619429 | G23: 0.7035754551 | H23: 0.1285380571 | I23: 0.1035754551 | J23: 0.1160567561 | U23: 0.0095 | AE23: -0.9 | AF23: 6 | AG23: 0.0293251958 | AH23: 0.04060635873
B24: 9 | C24: 0.3 | D24: 120 | F24: 0.127621157 | G24: 0.454786383 | H24: 0.172378843 | I24: 0.154786383 | J24: 0.163582613 | U24: 0.0095 | AE24: 0.9 | AF24: 7 | AG24: 0.04060635873 | AH24: 0.0293251958
B25: 10 | C25: 0 | D25: 120 | F25: -0.1792413391 | G25: 0.1792413391 | H25: 0.1792413391 | I25: 0.1792413391 | J25: 0.1792413391 | U25: 0.0095 | AE25: 0.6 | AF25: 8 | AG25: 0.1285380571 | AH25: 0.1035754551
U26: 0.0095 | AE26: 0.3 | AF26: 9 | AG26: 0.172378843 | AH26: 0.154786383
U27: 0.0095 | AE27: 0 | AF27: 10 | AG27: 0.1792413391 | AH27: 0.1792413391
U28: 0.0095
U29: 0.0095
U30: 0.0095

Sheet Diff correlations
D1: CIs for differences between two independent correlations | P1: =$G$9/1000000 -> 9.5e-05 | Q1: =$P$1 -> 9.5e-05 | R1: 9.5e-05 | S1: 9.5e-05 | T1: 9.5e-05 | U1: 9.5e-05 | V1: 9.5e-05 | W1: 9.5e-05 | X1: 9.5e-05 | Y1: 9.5e-05 | Z1: 9.5e-05 | AA1: 9.5e-05 | AB1: 9.5e-05 | AC1: 9.5e-05 | AO1: for C | AP1: 95
D2: Enter up to 10 pairs of independent correlations (r1 and r2), each | P2: =$P$1 -> 9.5e-05 | AC2: =$P$1 -> 9.5e-05 | AS2: CI calculations
E3: with sample size (N1 and N2) | P3: =$P$1 -> 9.5e-05 | R3: Mark zero? | S3: FALSE | AC3: 9.5e-05 | AS3: crit z | AT3: =NORMSINV(0.5+G9/200) -> 1.959963985
D4: See a figure displaying differences (r2 - r1) between correlations | P4: 9.5e-05 | R4: For vertical | S4: =IF(S3,0,NA()) ->  | T4: 1 | AC4: 9.5e-05 | AO4: r1 OK? | AP4: r2 OK? | AQ4: bothOK? | AR4: r1 | AS4: z1 | AT4: SE z1 | AU4: LL (z1) | AV4: UL (z1) | AW4: LL (r1) | AX4: UL (r1) | AY4: r2 | AZ4: z2 | BA4: SE z2 | BB4: LL (z2) | BC4: UL (z2) | BD4: LL (r2) | BE4: UL (r2) | BF4: Lldiff | BG4: Uldiff
E5: and the approximate CI on the difference. | P5: 9.5e-05 | AC5: 9.5e-05 | AO5: =IF(NOT(AND(ISNUMBER(C17),ISNUMBER(D17))),FALSE,AND(C17>=-1,C17<=1,D17>3,D17=INT(D17))) -> TRUE | AP5: =IF(NOT(AND(ISNUMBER(G17),ISNUMBER(H17))),FALSE,AND(G17>=-1,G17<=1,H17>3,H17=INT(H17))) -> TRUE | AQ5: =AND(AO5,AP5) -> TRUE | AR5: =IF(AO5,IF(1-ABS(C17)<0.0000001,IF(C17>0,0.9999999,-0.9999999),C17),NA()) -> 0.36 | AS5: =0.5*LN((1+AR5)/(1-AR5)) -> 0.3768859012 | AT5: =IF(AO5,1/SQRT(D17-3),NA()) -> 0.1091089451 | AU5: =AS5-AT5*$AT$3 -> 0.1630362984 | AV5: =AS5+AT5*$AT$3 -> 0.590735504 | AW5: =(EXP(2*AU5)-1)/(EXP(2*AU5)+1) -> 0.1616069468 | AX5: =(EXP(2*AV5)-1)/(EXP(2*AV5)+1) -> 0.5304243837 | AY5: =IF(AP5,IF(1-ABS(G17)<0.0000001,IF(G17>0,0.9999999,-0.9999999),G17),NA()) -> 0.49 | AZ5: =0.5*LN((1+AY5)/(1-AY5)) -> 0.5360603366 | BA5: =IF(AP5,1/SQRT(H17-3),NA()) -> 0.08391813583 | BB5: =AZ5-BA5*$AT$3 -> 0.3715838127 | BC5: =AZ5+BA5*$AT$3 -> 0.7005368605 | BD5: =(EXP(2*BB5)-1)/(EXP(2*BB5)+1) -> 0.35537628 | BE5: =(EXP(2*BC5)-1)/(EXP(2*BC5)+1) -> 0.6047084332 | BF5: =J17-SQRT((AY5-BD5)^2+(AX5-AR5)^2) -> -0.08718198943 | BG5: =J17+SQRT((BE5-AY5)^2+(AR5-AW5)^2) -> 0.3591676857
D6: CIs are calculated by using the method of Zou (2007). | P6: 9.5e-05 | AC6: 9.5e-05 | AO6: TRUE | AP6: TRUE | AQ6: =AND(AO6,AP6) -> TRUE | AR6: 0.49 | AS6: 0.5360603366 | AT6: 0.08391813583 | AU6: 0.3715838127 | AV6: 0.7005368605 | AW6: =(EXP(2*AU6)-1)/(EXP(2*AU6)+1) -> 0.35537628 | AX6: =(EXP(2*AV6)-1)/(EXP(2*AV6)+1) -> 0.6047084332 | AY6: 0.36 | AZ6: 0.3768859012 | BA6: 0.1091089451 | BB6: =AZ6-BA6*$AT$3 -> 0.1630362984 | BC6: =AZ6+BA6*$AT$3 -> 0.590735504 | BD6: =(EXP(2*BB6)-1)/(EXP(2*BB6)+1) -> 0.1616069468 | BE6: =(EXP(2*BC6)-1)/(EXP(2*BC6)+1) -> 0.5304243837 | BF6: -0.3591676857 | BG6: 0.08718198943
P7: 9.5e-05 | AC7: 9.5e-05 | AO7: TRUE | AP7: TRUE | AQ7: TRUE | AR7: 0.2 | AS7: 0.2027325541 | AT7: 0.1924500897 | AU7: -0.1744626906 | AV7: 0.5799277987 | AW7: -0.1727139249 | AX7: 0.5226129503 | AY7: 0.6 | AZ7: 0.6931471806 | BA7: 0.1924500897 | BB7: 0.3159519359 | BC7: 1.070342425 | BD7: 0.3058420678 | BE7: 0.7895901951 | BF7: -0.03658676662 | BG7: 0.8181627816
B8: 1 | C8: Level of confidence | P8: 9.5e-05 | AC8: 9.5e-05 | AO8: TRUE | AP8: TRUE | AQ8: TRUE | AR8: 0.2 | AS8: 0.2027325541 | AT8: 0.1015346165 | AU8: 0.003728362504 | AV8: 0.4017367456 | AW8: 0.003728345228 | AX8: 0.3814340077 | AY8: 0.6 | AZ8: 0.6931471806 | BA8: 0.1015346165 | BB8: 0.494142989 | BC8: 0.8921513721 | BD8: 0.457498476 | BE8: 0.7124547099 | BF8: 0.1692945959 | BG8: 0.6262048281
F9: C | G9: =IF(AP1<100,AP1,99+(AP1-99)/10) -> 95 | P9: 9.5e-05 | AC9: 9.5e-05 | AO9: TRUE | AP9: TRUE | AQ9: TRUE | AR9: 0.9999999 | AS9: 8.405621391 | AT9: 1 | AU9: 6.445657406 | AV9: 10.36558538 | AW9: 0.9999949603 | AX9: 0.999999998 | AY9: -0.9999999 | AZ9: -8.405621391 | BA9: 1 | BB9: -10.36558538 | BC9: -6.445657406 | BD9: -0.999999998 | BE9: -0.9999949603 | BF9: -2.000000139 | BG9: -1.999993014
P10: 9.5e-05 | AC10: 9.5e-05 | AO10: TRUE | AP10: TRUE | AQ10: TRUE | AR10: -0.3 | AS10: -0.3095196042 | AT10: 0.1104315261 | AU10: -0.5259614181 | AV10: -0.09307779034 | AW10: -0.482287931 | AX10: -0.09280992618 | AY10: 0.3 | AZ10: 0.3095196042 | BA10: 0.09449111825 | BB10: 0.1243204156 | BC10: 0.4947187928 | BD10: 0.1236838698 | BE10: 0.4579536414 | BF10: 0.3279428287 | BG10: 0.8412016638
B11: 2 | C11: Mark zero | P11: 9.5e-05 | AC11: 9.5e-05 | AO11: TRUE | AP11: TRUE | AQ11: TRUE | AR11: 0 | AS11: 0 | AT11: 0.1015346165 | AU11: -0.1990041916 | AV11: 0.1990041916 | AW11: -0.1964181177 | AX11: 0.1964181177 | AY11: 0 | AZ11: 0 | BA11: 0.1015346165 | BB11: -0.1990041916 | BC11: 0.1990041916 | BD11: -0.1964181177 | BE11: 0.1964181177 | BF11: -0.2777771659 | BG11: 0.2777771659
D12: Display dotted vertical at zero | P12: 9.5e-05 | AC12: 9.5e-05 | AO12: TRUE | AP12: TRUE | AQ12: TRUE | AR12: 0 | AS12: 0 | AT12: 0.242535625 | AU12: -0.47536109 | AV12: 0.47536109 | AW12: -0.4425207822 | AX12: 0.4425207822 | AY12: 0 | AZ12: 0 | BA12: 0.242535625 | BB12: -0.47536109 | BC12: 0.47536109 | BD12: -0.4425207822 | BE12: 0.4425207822 | BF12: -0.6258188918 | BG12: 0.6258188918
P13: 9.5e-05 | AC13: 9.5e-05 | AO13: TRUE | AP13: TRUE | AQ13: TRUE | AR13: 0.9 | AS13: 1.47221949 | AT13: 0.1015346165 | AU13: 1.273215298 | AV13: 1.671223681 | AW13: 0.8546667053 | AX13: 0.931713285 | AY13: 0.7 | AZ13: 0.8673005277 | BA13: 0.1015346165 | BB13: 0.6682963361 | BC13: 1.066304719 | BD13: 0.5838580984 | BE13: 0.7880649534 | BF13: -0.3203938277 | BG13: -0.1009518116
P14: 9.5e-05 | AC14: 9.5e-05 | AO14: FALSE | AP14: FALSE | AQ14: FALSE
B15: 3 | C15: Input | G15: Input | J15: Diff | K15: 4 CI limits | M15: 5 CI bars | P15: 9.5e-05 | AC15: 9.5e-05
C16: r1 | D16: N1 | G16: r2 | H16: N2 | J16: r2 - r1 | K16: LLdiff | L16: ULdiff | M16: Left | N16: Right | O16: MOEav | P16: 9.5e-05 | AC16: 9.5e-05 | AO16: For display
B17: 1 | C17: 0.36 | D17: 87 | F17: 1 | G17: 0.49 | H17: 145 | J17: =IF(AQ5,G17-C17,"") -> 0.13 | K17: =IF(AQ5,BF5,"") -> -0.08718198943 | L17: =IF(AQ5,BG5,"") -> 0.3591676857 | M17: =IF(AQ5,AQ18,"") -> 0.2171819894 | N17: =IF(AQ5,AR18,"") -> 0.2291676857 | O17: =IF(AQ5,(AQ18+AR18)/2,"") -> 0.2231748376 | P17: 9.5e-05 | AC17: =$P$1 -> 9.5e-05 | AO17: r | AP17: y | AQ17: L bars | AR17: R bars
B18: 2 | C18: 0.49 | D18: 145 | F18: 2 | G18: 0.36 | H18: 87 | J18: -0.13 | K18: -0.3591676857 | L18: 0.08718198943 | M18: 0.2291676857 | N18: 0.2171819894 | O18: 0.2231748376 | P18: 9.5e-05 | AC18: 9.5e-05 | AO18: =IF(AQ5,J17,NA()) -> 0.13 | AP18: 1 | AQ18: =IF(ISNA(AO18),NA(),J17-K17) -> 0.2171819894 | AR18: =IF(ISNA(AO18),NA(),L17-J17) -> 0.2291676857
B19: 3 | C19: 0.2 | D19: 30 | F19: 3 | G19: 0.6 | H19: 30 | J19: 0.4 | K19: -0.03658676662 | L19: 0.8181627816 | M19: 0.4365867666 | N19: 0.4181627816 | O19: 0.4273747741 | P19: 9.5e-05 | AC19: 9.5e-05 | AO19: -0.13 | AP19: 2 | AQ19: 0.2291676857 | AR19: 0.2171819894
B20: 4 | C20: 0.2 | D20: 100 | F20: 4 | G20: 0.6 | H20: 100 | J20: 0.4 | K20: 0.1692945959 | L20: 0.6262048281 | M20: 0.2307054041 | N20: 0.2262048281 | O20: 0.2284551161 | P20: 9.5e-05 | AC20: 9.5e-05 | AO20: 0.4 | AP20: 3 | AQ20: 0.4365867666 | AR20: 0.4181627816
B21: 5 | C21: 1 | D21: 4 | F21: 5 | G21: -1 | H21: 4 | J21: -2 | K21: -2.000000139 | L21: -1.999993014 | M21: 1.386151993e-07 | N21: 6.985746896e-06 | O21: 3.562181048e-06 | P21: 9.5e-05 | AC21: 9.5e-05 | AO21: 0.4 | AP21: 4 | AQ21: 0.2307054041 | AR21: 0.2262048281
B22: 6 | C22: -0.3 | D22: 85 | F22: 6 | G22: 0.3 | H22: 115 | J22: 0.6 | K22: 0.3279428287 | L22: 0.8412016638 | M22: 0.2720571713 | N22: 0.2412016638 | O22: 0.2566294176 | P22: 9.5e-05 | AC22: 9.5e-05 | AO22: -2 | AP22: 5 | AQ22: 1.386151993e-07 | AR22: 6.985746896e-06
B23: 7 | C23: 0 | D23: 100 | F23: 7 | G23: 0 | H23: 100 | J23: 0 | K23: -0.2777771659 | L23: 0.2777771659 | M23: 0.2777771659 | N23: 0.2777771659 | O23: 0.2777771659 | P23: 9.5e-05 | AC23: 9.5e-05 | AO23: 0.6 | AP23: 6 | AQ23: 0.2720571713 | AR23: 0.2412016638
B24: 8 | C24: 0 | D24: 20 | F24: 8 | G24: 0 | H24: 20 | J24: 0 | K24: -0.6258188918 | L24: 0.6258188918 | M24: 0.6258188918 | N24: 0.6258188918 | O24: 0.6258188918 | P24: 9.5e-05 | AC24: 9.5e-05 | AO24: 0 | AP24: 7 | AQ24: 0.2777771659 | AR24: 0.2777771659
B25: 9 | C25: 0.9 | D25: 100 | F25: 9 | G25: 0.7 | H25: 100 | J25: -0.2 | K25: -0.3203938277 | L25: -0.1009518116 | M25: 0.1203938277 | N25: 0.09904818838 | O25: 0.1097210081 | P25: 9.5e-05 | AC25: 9.5e-05 | AO25: 0 | AP25: 8 | AQ25: 0.6258188918 | AR25: 0.6258188918
B26: 10 | F26: 10 | P26: 9.5e-05 | AC26: 9.5e-05 | AO26: -0.2 | AP26: 9 | AQ26: 0.1203938277 | AR26: 0.09904818838
P27: 9.5e-05 | AC27: 9.5e-05 | AP27: 10
P28: 9.5e-05 | AC28: 9.5e-05
P29: 9.5e-05 | AC29: 9.5e-05
P30: =$P$1 -> 9.5e-05 | AC30: 9.5e-05

Sheet Proportions
D1: CIs for proportions | M1: =$G$11/10000 -> 0.0095 | N1: 0.0095 | O1: 0.0095 | P1: 0.0095 | Q1: 0.0095 | R1: 0.0095 | S1: 0.0095 | T1: 0.0095 | U1: 0.0095 | V1: 0.0095 | AE1: for C | AF1: 95
D2: Enter up to 10 proportions (P), each | V2: =$G$11/10000 -> 0.0095 | AG2: CI calculations
E3: being x/N, where x and N are integers | V3: 0.0095 | AG3: crit z | AH3: =NORMSINV(0.5+G11/200) -> 1.959963985
D4: See a figure displaying proportions | V4: 0.0095 | AE4: OK? | AF4: P | AG4: Q | AH4: A | AI4: B | AJ4: C | AK4: LL | AL4: UL
E5: and their approximate CIs | V5: 0.0095 | AE5: =IF(NOT(AND(ISNUMBER(C16),ISNUMBER(D16))),FALSE,AND(C16=INT(C16),C16>-0.5,C16<D16+0.5,D16=INT(D16),D16>C16-0.5,D16>0.5)) -> TRUE | AF5: =IF(AE5,C16/D16,NA()) -> 0 | AG5: =IF(AE5,1-AF5,NA()) -> 1 | AH5: =IF(AE5,2*C16+$AH$3^2,NA()) -> 3.841458821 | AI5: =IF(AE5,$AH$3*SQRT($AH$3^2+4*C16*AG5),NA()) -> 3.841458821 | AJ5: =IF(AE5,2*(D16+$AH$3^2),NA()) -> 21.68291764 | AK5: =(AH5-AI5)/AJ5 -> 0 | AL5: =(AH5+AI5)/AJ5 -> 0.3543304351
D6: CIs are calculated by using the method recommended | V6: 0.0095 | AE6: TRUE | AF6: 0 | AG6: =IF(AE6,1-AF6,NA()) -> 1 | AH6: 3.841458821 | AI6: 3.841458821 | AJ6: 63.68291764 | AK6: =(AH6-AI6)/AJ6 -> 0 | AL6: =(AH6+AI6)/AJ6 -> 0.1206433048
E7: by Newcombe and Altman (2000) | V7: 0.0095 | AE7: TRUE | AF7: 1 | AG7: 0 | AH7: 59.84145882 | AI7: 3.841458821 | AJ7: 63.68291764 | AK7: 0.8793566952 | AL7: 1
V8: 0.0095 | AE8: TRUE | AF8: 0.8571428571 | AG8: 0.1428571429 | AH8: 15.84145882 | AI8: 5.284649641 | AJ8: 21.68291764 | AK8: 0.4868721707 | AL8: 0.9743203757
V9: 0.0095 | AE9: TRUE | AF9: 0.1428571429 | AG9: 0.8571428571 | AH9: 5.841458821 | AI9: 5.284649641 | AJ9: 21.68291764 | AK9: 0.02567962434 | AL9: 0.5131278293
B10: 1 | C10: Level of confidence | V10: 0.0095 | AE10: TRUE | AF10: 0.1428571429 | AG10: 0.8571428571 | AH10: 11.84145882 | AI10: 8.212165957 | AJ10: 63.68291764 | AK10: 0.0569900532 | AL10: 0.3148980216
F11: C | G11: =IF(AF1<100,AF1,99+(AF1-99)/10) -> 95 | V11: 0.0095 | AE11: TRUE | AF11: 0.1428571429 | AG11: 0.8571428571 | AH11: 35.84145882 | AI11: 15.01626655 | AJ11: 231.6829176 | AK11: 0.08988661089 | AL11: 0.2195143513
V12: 0.0095 | AE12: TRUE | AF12: 0.4285714286 | AG12: 0.5714285714 | AH12: 9.841458821 | AI12: 6.41079073 | AJ12: 21.68291764 | AK12: 0.1582198553 | AL12: 0.7495416355
V13: 0.0095 | AE13: TRUE | AF13: 0.4285714286 | AG13: 0.5714285714 | AH13: 27.84145882 | AI13: 10.96004259 | AJ13: 63.68291764 | AK13: 0.2650854712 | AL13: 0.6092921437
B14: 2 | C14: Input | F14: 3 Proportion | G14: 4 CI limits | I14: 5 CI bars | V14: 0.0095 | AE14: TRUE | AF14: 0.4285714286 | AG14: 0.5714285714 | AH14: 99.84145882 | AI14: 20.88587361 | AJ14: 231.6829176 | AK14: 0.3407915698 | AL14: 0.5210886226
C15: x | D15: N | F15: P | G15: LL | H15: UL | I15: Left | J15: Right | K15: MOEav | V15: 0.0095
B16: 1 | C16: 0 | D16: 7 | F16: =IF(AE5,C16/D16,"") -> 0 | G16: =IF(AE5,AK5,"") -> 0 | H16: =IF(AE5,AL5,"") -> 0.3543304351 | I16: =IF(AE5,AG18,"") -> 0 | J16: =IF(AE5,AH18,"") -> 0.3543304351 | K16: =IF(AE5,(AG18+AH18)/2,"") -> 0.1771652175 | V16: 0.0095 | AE16: For display
B17: 2 | C17: 0 | D17: 28 | F17: 0 | G17: 0 | H17: 0.1206433048 | I17: 0 | J17: 0.1206433048 | K17: =IF(AE6,(AG19+AH19)/2,"") -> 0.06032165238 | V17: 0.0095 | AE17: P | AF17: y | AG17: L bars | AH17: R bars
B18: 3 | C18: 28 | D18: 28 | F18: 1 | G18: 0.8793566952 | H18: 1 | I18: 0.1206433048 | J18: 0 | K18: 0.06032165238 | V18: 0.0095 | AE18: =IF(AE5,AF5,NA()) -> 0 | AF18: 1 | AG18: =IF(ISNA(AE18),NA(),AE18-AK5) -> 0 | AH18: =IF(ISNA(AE18),NA(),AL5-AE18) -> 0.3543304351
B19: 4 | C19: 6 | D19: 7 | F19: 0.8571428571 | G19: 0.4868721707 | H19: 0.9743203757 | I19: 0.3702706864 | J19: 0.1171775185 | K19: 0.2437241025 | V19: 0.0095 | AE19: =IF(AE6,AF6,NA()) -> 0 | AF19: 2 | AG19: =IF(ISNA(AE19),NA(),AE19-AK6) -> 0 | AH19: =IF(ISNA(AE19),NA(),AL6-AE19) -> 0.1206433048
B20: 5 | C20: 1 | D20: 7 | F20: 0.1428571429 | G20: 0.02567962434 | H20: 0.5131278293 | I20: 0.1171775185 | J20: 0.3702706864 | K20: 0.2437241025 | V20: 0.0095 | AE20: 1 | AF20: 3 | AG20: 0.1206433048 | AH20: 0
B21: 6 | C21: 4 | D21: 28 | F21: 0.1428571429 | G21: 0.0569900532 | H21: 0.3148980216 | I21: 0.08586708966 | J21: 0.1720408788 | K21: 0.1289539842 | V21: 0.0095 | AE21: 0.8571428571 | AF21: 4 | AG21: 0.3702706864 | AH21: 0.1171775185
B22: 7 | C22: 16 | D22: 112 | F22: 0.1428571429 | G22: 0.08988661089 | H22: 0.2195143513 | I22: 0.05297053197 | J22: 0.07665720844 | K22: 0.0648138702 | V22: 0.0095 | AE22: 0.1428571429 | AF22: 5 | AG22: 0.1171775185 | AH22: 0.3702706864
B23: 8 | C23: 3 | D23: 7 | F23: 0.4285714286 | G23: 0.1582198553 | H23: 0.7495416355 | I23: 0.2703515733 | J23: 0.3209702069 | K23: 0.2956608901 | V23: 0.0095 | AE23: 0.1428571429 | AF23: 6 | AG23: 0.08586708966 | AH23: 0.1720408788
B24: 9 | C24: 12 | D24: 28 | F24: 0.4285714286 | G24: 0.2650854712 | H24: 0.6092921437 | I24: 0.1634859573 | J24: 0.1807207152 | K24: 0.1721033362 | V24: 0.0095 | AE24: 0.1428571429 | AF24: 7 | AG24: 0.05297053197 | AH24: 0.07665720844
B25: 10 | C25: 48 | D25: 112 | F25: 0.4285714286 | G25: 0.3407915698 | H25: 0.5210886226 | I25: 0.08777985872 | J25: 0.09251719402 | K25: =IF(AE14,(AG27+AH27)/2,"") -> 0.09014852637 | V25: 0.0095 | AE25: 0.4285714286 | AF25: 8 | AG25: 0.2703515733 | AH25: 0.3209702069
V26: 0.0095 | AE26: 0.4285714286 | AF26: 9 | AG26: 0.1634859573 | AH26: 0.1807207152
V27: 0.0095 | AE27: 0.4285714286 | AF27: 10 | AG27: 0.08777985872 | AH27: 0.09251719402
V28: 0.0095
V29: 0.0095
V30: 0.0095

Sheet Diff proportions
D1: CIs for differences between two independent proportions | N1: =$H$11/10000 -> 0.0095 | O1: 0.0095 | P1: 0.0095 | Q1: 0.0095 | R1: 0.0095 | S1: 0.0095 | T1: 0.0095 | U1: 0.0095 | V1: 0.0095 | W1: 0.0095 | AI1: for C | AJ1: 95
D2: Enter up to 10 pairs of independent proportions (P1, P2), each | N2: =$H$11/10000 -> 0.0095 | W2: =$H$11/10000 -> 0.0095 | AK2: CI calculations
E3: being x/N, where x and N are integers | N3: 0.0095 | P3: Mark zero? | Q3: TRUE | W3: 0.0095 | AK3: crit z | AL3: =NORMSINV(0.5+H11/200) -> 1.959963985
D4: See a figure displaying differences (P2 - P1) between | N4: 0.0095 | P4: For vertical | Q4: =IF(Q3,0,NA()) -> 0 | R4: 1 | W4: 0.0095 | AI4: p1 OK? | AJ4: p2 OK? | AK4: all OK? | AL4: p1 | AM4: q1 | AN4: A1 | AO4: B1 | AP4: C1 | AQ4: LL1 | AR4: UL1 | AS4: p2 | AT4: q2 | AU4: A2 | AV4: B2 | AW4: C2 | AX4: LL2 | AY4: UL2 | AZ4: D | BA4: LLD | BB4: ULD
E5: proportions and the approximate CIs on differences | N5: 0.0095 | W5: 0.0095 | AI5: =IF(NOT(AND(ISNUMBER(C26),ISNUMBER(D26))),FALSE,AND(C26=INT(C26),C26>-0.5,C26<D26+0.5,D26=INT(D26),D26>C26-0.5,D26>0.5)) -> TRUE | AJ5: =IF(NOT(AND(ISNUMBER(H26),ISNUMBER(I26))),FALSE,AND(H26=INT(H26),H26>-0.5,H26<I26+0.5,I26=INT(I26),I26>H26-0.5,I26>0.5)) -> TRUE | AK5: =AND(AI5,AJ5) -> TRUE | AL5: =IF(AK5,C26/D26,NA()) -> 0.1428571429 | AM5: =IF(AK5,1-AL5,NA()) -> 0.8571428571 | AN5: =IF(AK5,2*C26+$AL$3^2,NA()) -> 11.84145882 | AO5: =IF(AK5,$AL$3*SQRT($AL$3^2+4*C26*AM5),NA()) -> 8.212165957 | AP5: =IF(AK5,2*(D26+$AL$3^2),NA()) -> 63.68291764 | AQ5: =(AN5-AO5)/AP5 -> 0.0569900532 | AR5: =(AN5+AO5)/AP5 -> 0.3148980216 | AS5: =IF(AK5,H26/I26,NA()) -> 0.4285714286 | AT5: =IF(AK5,1-AS5,NA()) -> 0.5714285714 | AU5: =IF(AK5,2*H26+$AL$3^2,NA()) -> 27.84145882 | AV5: =IF(AK5,$AL$3*SQRT($AL$3^2+4*H26*AT5),NA()) -> 10.96004259 | AW5: =IF(AK5,2*(I26+$AL$3^2),NA()) -> 63.68291764 | AX5: =(AU5-AV5)/AW5 -> 0.2650854712 | AY5: =(AU5+AV5)/AW5 -> 0.6092921437 | AZ5: =IF(AK5,AS5-AL5,NA()) -> 0.2857142857 | BA5: =IF(AK5,AZ5-SQRT((AS5-AX5)^2+(AR5-AL5)^2),NA()) -> 0.04838387844 | BB5: =IF(AK5,AZ5+SQRT((AL5-AQ5)^2+(AY5-AS5)^2),NA()) -> 0.4857971035
D6: CIs are calculated by using the method recommended | N6: 0.0095 | W6: 0.0095 | AI6: =IF(NOT(AND(ISNUMBER(C27),ISNUMBER(D27))),FALSE,AND(C27=INT(C27),C27>-0.5,C27<D27+0.5,D27=INT(D27),D27>C27-0.5,D27>0.5)) -> TRUE | AJ6: =IF(NOT(AND(ISNUMBER(H27),ISNUMBER(I27))),FALSE,AND(H27=INT(H27),H27>-0.5,H27<I27+0.5,I27=INT(I27),I27>H27-0.5,I27>0.5)) -> TRUE | AK6: =AND(AI6,AJ6) -> TRUE | AL6: 0.55 | AM6: 0.45 | AN6: 25.84145882 | AO6: 9.52983161 | AP6: 47.68291764 | AQ6: 0.3420853425 | AR6: 0.7418021417 | AS6: 0.85 | AT6: =IF(AK6,1-AS6,NA()) -> 0.15 | AU6: 37.84145882 | AV6: 7.344364223 | AW6: 47.68291764 | AX6: =(AU6-AV6)/AW6 -> 0.6395811353 | AY6: =(AU6+AV6)/AW6 -> 0.9476312541 | AZ6: =IF(AK6,AS6-AL6,NA()) -> 0.3 | BA6: =IF(AK6,AZ6-SQRT((AS6-AX6)^2+(AR6-AL6)^2),NA()) -> 0.01528231489 | BB6: =IF(AK6,AZ6+SQRT((AL6-AQ6)^2+(AY6-AS6)^2),NA()) -> 0.5296962486
E7: by Newcombe and Altman (2000) | N7: 0.0095 | W7: 0.0095 | AI7: TRUE | AJ7: TRUE | AK7: TRUE | AL7: 1 | AM7: 0 | AN7: 17.84145882 | AO7: 3.841458821 | AP7: 21.68291764 | AQ7: 0.6456695649 | AR7: 1 | AS7: 0 | AT7: 1 | AU7: 3.841458821 | AV7: 3.841458821 | AW7: 21.68291764 | AX7: 0 | AY7: 0.3543304351 | AZ7: -1 | BA7: -1 | BB7: -0.4989010932
N8: 0.0095 | W8: 0.0095 | AI8: TRUE | AJ8: TRUE | AK8: TRUE | AL8: 1 | AM8: 0 | AN8: 143.8414588 | AO8: 3.841458821 | AP8: 147.6829176 | AQ8: 0.9479769376 | AR8: 1 | AS8: 0 | AT8: 1 | AU8: 3.841458821 | AV8: 3.841458821 | AW8: 147.6829176 | AX8: 0 | AY8: 0.05202306241 | AZ8: -1 | BA8: -1 | BB8: -0.9264282796
N9: 0.0095 | W9: 0.0095 | AI9: TRUE | AJ9: TRUE | AK9: TRUE | AL9: 0.5 | AM9: 0.5 | AN9: 7.841458821 | AO9: 5.488409711 | AP9: 15.68291764 | AQ9: 0.1500389892 | AR9: 0.8499610108 | AS9: 0.75 | AT9: 0.25 | AU9: 9.841458821 | AV9: 5.126517564 | AW9: 15.68291764 | AX9: 0.3006418426 | AY9: 0.9544127392 | AZ9: 0.25 | BA9: -0.3195572515 | BB9: 0.6552866603
B10: 1 | C10: Level of confidence | N10: 0.0095 | W10: 0.0095 | AI10: TRUE | AJ10: TRUE | AK10: TRUE | AL10: 0.1 | AM10: 0.9 | AN10: 23.84145882 | AO10: 12.3713105 | AP10: 207.6829176 | AQ10: 0.05522913706 | AR10: 0.1743656615 | AS10: 0.09 | AT10: 0.91 | AU10: 21.84145882 | AV10: 11.85761345 | AW10: 207.6829176 | AX10: 0.04807254 | AY10: 0.1622621285 | AZ10: -0.01 | BA10: -0.09537074155 | BB10: 0.07500732549
G11: C | H11: =IF(AJ1<100,AJ1,99+(AJ1-99)/10) -> 95 | N11: 0.0095 | W11: 0.0095 | AI11: TRUE | AJ11: TRUE | AK11: TRUE | AL11: 0.3 | AM11: 0.7 | AN11: 63.84145882 | AO11: 18.36952223 | AP11: 207.6829176 | AQ11: 0.2189488529 | AR11: 0.3958485463 | AS11: 0.33 | AT11: 0.67 | AU11: 69.84145882 | AV11: 18.82804886 | AW11: 207.6829176 | AX11: 0.2456312273 | AY11: 0.426946562 | AZ11: 0.03 | BA11: -0.09769116506 | BB11: 0.1563642526
N12: 0.0095 | W12: 0.0095 | AI12: TRUE | AJ12: TRUE | AK12: TRUE | AL12: 0.5 | AM12: 0.5 | AN12: 103.8414588 | AO12: 19.97254836 | AP12: 207.6829176 | AQ12: 0.4038315304 | AR12: 0.5961684696 | AS12: 0.99 | AT12: 0.01 | AU12: 201.8414588 | AV12: 5.474393373 | AW12: 207.6829176 | AX12: 0.9455138038 | AY12: 0.9982325679 | AZ12: 0.49 | BA12: 0.3840405917 | BB12: 0.5865202037
B13: 2 | C13: Mark zero | N13: 0.0095 | W13: 0.0095 | AI13: TRUE | AJ13: TRUE | AK13: TRUE | AL13: 0.7 | AM13: 0.3 | AN13: 143.8414588 | AO13: 18.36952223 | AP13: 207.6829176 | AQ13: 0.6041514537 | AR13: 0.7810511471 | AS13: 0.01 | AT13: 0.99 | AU13: 5.841458821 | AV13: 5.474393373 | AW13: 207.6829176 | AX13: 0.001767432064 | AY13: 0.05448619618 | AZ13: -0.69 | BA13: -0.7714681755 | BB13: -0.5843308679
D14: Display dotted vertical at zero | N14: 0.0095 | W14: 0.0095 | AI14: FALSE | AJ14: FALSE | AK14: FALSE
N15: 0.0095 | W15: 0.0095
N16: 0.0095 | W16: 0.0095 | AI16: For display
N17: =$H$11/10000 -> 0.0095 | W17: 0.0095 | AI17: D | AJ17: y | AK17: L bars | AL17: R bars
N18: 0.0095 | W18: 0.0095 | AI18: =IF(AK5,AZ5,NA()) -> 0.2857142857 | AJ18: 1 | AK18: =IF(ISNA(AI18),NA(),AI18-BA5) -> 0.2373304073 | AL18: =IF(ISNA(AI18),NA(),BB5-AI18) -> 0.2000828178
N19: 0.0095 | W19: 0.0095 | AI19: 0.3 | AJ19: 2 | AK19: =IF(ISNA(AI19),NA(),AI19-BA6) -> 0.2847176851 | AL19: 0.2296962486
N20: 0.0095 | W20: 0.0095 | AI20: -1 | AJ20: 3 | AK20: 0 | AL20: 0.5010989068
N21: 0.0095 | W21: 0.0095 | AI21: -1 | AJ21: 4 | AK21: 0 | AL21: 0.07357172042
N22: 0.0095 | W22: 0.0095 | AI22: 0.25 | AJ22: 5 | AK22: 0.5695572515 | AL22: 0.4052866603
AI23: -0.01 | AJ23: 6 | AK23: 0.08537074155 | AL23: 0.08500732549
B24: 3 | C24: Input | F24: Prop'n | H24: Input | K24: Prop'n | L24: Diff | M24: 4 CI limits | O24: 5 CI bars | AI24: 0.03 | AJ24: 7 | AK24: 0.1276911651 | AL24: 0.1263642526
C25: x1 | D25: N1 | F25: P1 | H25: x2 | I25: N2 | K25: P2 | L25: P2 - P1 | M25: LLdiff | N25: ULdiff | O25: Left | P25: Right | Q25: MOEav | AI25: 0.49 | AJ25: 8 | AK25: 0.1059594083 | AL25: 0.09652020372
B26: 1 | C26: 4 | D26: 28 | F26: =IF(AK5,C26/D26,"") -> 0.1428571429 | H26: 12 | I26: 28 | K26: =IF(AK5,H26/I26,"") -> 0.4285714286 | L26: =IF(AK5,K26-F26,"") -> 0.2857142857 | M26: =IF(AK5,BA5,"") -> 0.04838387844 | N26: =IF(AK5,BB5,"") -> 0.4857971035 | O26: =IF(AK5,AK18,"") -> 0.2373304073 | P26: =IF(AK5,AL18,"") -> 0.2000828178 | Q26: =IF(AK5,(AK18+AL18)/2,"") -> 0.2187066125 | AI26: -0.69 | AJ26: 9 | AK26: 0.08146817546 | AL26: 0.1056691321
B27: 2 | C27: 11 | D27: 20 | F27: 0.55 | H27: 17 | I27: 20 | K27: 0.85 | L27: =IF(AK6,K27-F27,"") -> 0.3 | M27: 0.01528231489 | N27: 0.5296962486 | O27: 0.2847176851 | P27: 0.2296962486 | Q27: =IF(AK6,(AK19+AL19)/2,"") -> 0.2572069668 | AJ27: 10
B28: 3 | C28: 7 | D28: 7 | F28: 1 | H28: 0 | I28: 7 | K28: 0 | L28: -1 | M28: -1 | N28: -0.4989010932 | O28: 0 | P28: 0.5010989068 | Q28: 0.2505494534
B29: 4 | C29: 70 | D29: 70 | F29: 1 | H29: 0 | I29: 70 | K29: 0 | L29: -1 | M29: -1 | N29: -0.9264282796 | O29: 0 | P29: 0.07357172042 | Q29: 0.03678586021
B30: 5 | C30: 2 | D30: 4 | F30: 0.5 | H30: 3 | I30: 4 | K30: 0.75 | L30: 0.25 | M30: -0.3195572515 | N30: 0.6552866603 | O30: 0.5695572515 | P30: 0.4052866603 | Q30: 0.4874219559
B31: 6 | C31: 10 | D31: 100 | F31: 0.1 | H31: 9 | I31: 100 | K31: 0.09 | L31: -0.01 | M31: -0.09537074155 | N31: 0.07500732549 | O31: 0.08537074155 | P31: 0.08500732549 | Q31: 0.08518903352
B32: 7 | C32: 30 | D32: 100 | F32: 0.3 | H32: 33 | I32: 100 | K32: 0.33 | L32: 0.03 | M32: -0.09769116506 | N32: 0.1563642526 | O32: 0.1276911651 | P32: 0.1263642526 | Q32: 0.1270277088
B33: 8 | C33: 50 | D33: 100 | F33: 0.5 | H33: 99 | I33: 100 | K33: 0.99 | L33: 0.49 | M33: 0.3840405917 | N33: 0.5865202037 | O33: 0.1059594083 | P33: 0.09652020372 | Q33: 0.101239806
B34: 9 | C34: 70 | D34: 100 | F34: 0.7 | H34: 1 | I34: 100 | K34: 0.01 | L34: -0.69 | M34: -0.7714681755 | N34: -0.5843308679 | O34: 0.08146817546 | P34: 0.1056691321 | Q34: 0.09356865379
B35: 10

Sheet Means
D1: CIs for single means | M1: =$F$8/10000 -> 0.0095 | N1: 0.0095 | O1: 0.0095 | P1: 0.0095 | Q1: 0.0095 | R1: 0.0095 | S1: 0.0095 | T1: 0.0095 | U1: 0.0095 | V1: 0.0095 | AG1: for C | AH1: 95
D2: Enter up to 10 means (M), each with its | V2: =$F$8/10000 -> 0.0095 | AI2: CI calculations
E3: sample size N, AND either SD OR SE | V3: 0.0095 | AG3: Blank if: | AI3: Block entry if: | AK3: mean | AL3: SD & | AM3: all
D4: See a figure displaying the means | V4: 0.0095 | AG4: SD grey | AH4: SE grey | AI4: SD grey | AJ4: SE grey | AK4: & n OK? | AL4: SE OK? | AM4: OK? | AN4: SE
E5: and their CIs | V5: 0.0095 | AG5: =IF(ISNUMBER(J26),"",-1) -> -1 | AH5: =IF(ISNUMBER(I26),"",-1) ->  | AI5: =IF(AG5="",9.99999999999999E+29,0) -> 0 | AJ5: =IF(AH5="",9.99999999999999E+29,0) -> 1e+30 | AK5: =IF(NOT(AND(ISNUMBER(C26),ISNUMBER(D26))),FALSE,AND(D26=INT(D26),D26>1.5)) -> TRUE | AL5: =IF(NOT(OR(AND(ISNUMBER(I26),J26=""),AND(ISNUMBER(J26),I26=""))),FALSE,OR(I26>0,J26>0)) -> TRUE | AM5: =AND(AK5,AL5) -> TRUE | AN5: =IF(AM5,IF(ISNUMBER(J26),J26,I26/SQRT(D26)),NA()) -> 8.485281374
V6: 0.0095 | AG6: =IF(ISNUMBER(J27),"",-1) -> -1 | AH6: =IF(ISNUMBER(I27),"",-1) ->  | AI6: =IF(AG6="",9.99999999999999E+29,0) -> 0 | AJ6: =IF(AH6="",9.99999999999999E+29,0) -> 1e+30 | AK6: =IF(NOT(AND(ISNUMBER(C27),ISNUMBER(D27))),FALSE,AND(D27=INT(D27),D27>1.5)) -> TRUE | AL6: =IF(NOT(OR(AND(ISNUMBER(I27),J27=""),AND(ISNUMBER(J27),I27=""))),FALSE,OR(I27>0,J27>0)) -> TRUE | AM6: =AND(AK6,AL6) -> TRUE | AN6: 3.198010745
B7: 1 | C7: Level of confidence | V7: 0.0095 | AH7: -1 | AI7: 1e+30 | AJ7: 0 | AK7: TRUE | AL7: TRUE | AM7: TRUE | AN7: 22
E8: C | F8: =IF(AH1<100,AH1,99+(AH1-99)/10) -> 95 | V8: 0.0095 | AH8: -1 | AI8: 1e+30 | AJ8: 0 | AK8: TRUE | AL8: TRUE | AM8: TRUE | AN8: 17
V9: 0.0095 | AH9: -1 | AI9: 1e+30 | AJ9: 0 | AK9: TRUE | AL9: TRUE | AM9: TRUE | AN9: 11
V10: 0.0095 | AG10: -1 | AH10: -1 | AI10: 0 | AJ10: 0 | AK10: TRUE | AL10: FALSE | AM10: FALSE
V11: 0.0095 | AH11: -1 | AI11: 1e+30 | AJ11: 0 | AK11: TRUE | AL11: TRUE | AM11: TRUE | AN11: 7
V12: 0.0095 | AG12: -1 | AI12: 0 | AJ12: 1e+30 | AK12: TRUE | AL12: TRUE | AM12: TRUE | AN12: 9.9
V13: 0.0095 | AG13: -1 | AH13: -1 | AI13: 0 | AJ13: 0 | AK13: FALSE | AL13: FALSE | AM13: FALSE
V14: 0.0095 | AG14: -1 | AI14: 0 | AJ14: 1e+30 | AK14: TRUE | AL14: TRUE | AM14: TRUE | AN14: 2.975509794
V15: 0.0095
V16: 0.0095 | AG16: For display
V17: =$F$8/10000 -> 0.0095 | AG17: D | AH17: y | AI17: L bars | AJ17: R bars
V18: 0.0095 | AG18: =IF(AM5,C26,NA()) -> 32 | AH18: 1 | AI18: =IF(AM5,L26,NA()) -> 107.8157224 | AJ18: =IF(AM5,L26,NA()) -> 107.8157224
V19: 0.0095 | AG19: 55 | AH19: 2 | AI19: 6.650627422 | AJ19: 6.650627422
V20: 0.0095 | AG20: 22 | AH20: 3 | AI20: 45.75150458 | AJ20: 45.75150458
V21: 0.0095 | AG21: 33 | AH21: 4 | AI21: 34.28376739 | AJ21: 34.28376739
V22: 0.0095 | AG22: 102 | AH22: 5 | AI22: 35.00690936 | AJ22: 35.00690936
AH23: 6
B24: 2 | C24: Input | I24: 3 Input | L24: Bars | M24: 4 CI limits | AG24: 30 | AH24: 7 | AI24: 13.88951866 | AJ24: 13.88951866
C25: M | D25: N | F25: df | G25: tcrit | I25: SD | J25: SE | L25: MOE | M25: LL | N25: UL | AG25: 50 | AH25: 8 | AI25: 19.64374782 | AJ25: 19.64374782
B26: 1 | C26: 32 | D26: 2 | F26: =IF(ISNUMBER(D26),D26-1,"") -> 1 | G26: =IF(ISNUMBER(D26),TINV(1-$F$8/100,F26),"") -> 12.70620474 | I26: 12 | L26: =IF(AM5,G26*AN5,"") -> 107.8157224 | M26: =IF(AM5,C26-L26,"") -> -75.81572239 | N26: =IF(AM5,C26+L26,"") -> 139.8157224 | AH26: 9
B27: 2 | C27: 55 | D27: 22 | F27: =IF(ISNUMBER(D27),D27-1,"") -> 21 | G27: =IF(ISNUMBER(D27),TINV(1-$F$8/100,F27),"") -> 2.079613845 | I27: 15 | L27: 6.650627422 | M27: 48.34937258 | N27: 61.65062742 | AG27: 45 | AH27: 10 | AI27: 5.890318827 | AJ27: 5.890318827
B28: 3 | C28: 22 | D28: 22 | F28: 21 | G28: 2.079613845 | J28: 22 | L28: 45.75150458 | M28: -23.75150458 | N28: 67.75150458
B29: 4 | C29: 33 | D29: 44 | F29: 43 | G29: 2.016692199 | J29: 17 | L29: 34.28376739 | M29: -1.283767387 | N29: 67.28376739
B30: 5 | C30: 102 | D30: 4 | F30: 3 | G30: 3.182446305 | J30: 11 | L30: 35.00690936 | M30: 66.99309064 | N30: 137.0069094
B31: 6 | C31: 10 | D31: 100 | F31: 99 | G31: 1.984216952
B32: 7 | C32: 30 | D32: 100 | F32: 99 | G32: 1.984216952 | J32: 7 | L32: 13.88951866 | M32: 16.11048134 | N32: 43.88951866
B33: 8 | C33: 50 | D33: 100 | F33: 99 | G33: 1.984216952 | I33: 99 | L33: 19.64374782 | M33: 30.35625218 | N33: 69.64374782
B34: 9
B35: 10 | C35: 45 | D35: 123 | F35: 122 | G35: 1.979599878 | I35: 33 | L35: 5.890318827 | M35: 39.10968117 | N35: 50.89031883

Sheet Paired means
D1: CIs for mean differences | O1: =$G$13/10000 -> 0.0095 | P1: 0.0095 | Q1: 0.0095 | R1: 0.0095 | S1: 0.0095 | T1: 0.0095 | U1: 0.0095 | V1: 0.0095 | W1: 0.0095 | X1: 0.0095 | Y1: 0.0095 | AI1: CI calculations
D2: Enter data for up to 10 paired experiments. (In each experiment, | Y2: =$G$13/10000 -> 0.0095 | AH2: Blank if: | AJ2: Block entry if: | AN2: Blank if: | AR2: Block entry if: | AW2: All 4 at
E3: there is a single repeated measure.) | Y3: 0.0095 | AH3: Md grey | AI3: 1&2grey | AJ3: Md grey | AK3: 1&2grey | AL3: Md OK? | AM3: n OK? | AN3: SDdgrey | AO3: SEdgrey | AP3: t grey | AQ3: p grey | AR3: SDdgrey | AS3: SEdgrey | AT3: t grey | AU3: p greyL | AV3: p greyU | AW3: 4 OK? | AX3: All OK? | AY3: SEd
D4: For each experiment, enter: | Y4: 0.0095 | AH4: =IF(OR(ISNUMBER(E26),ISNUMBER(D26)),"",9.99999999999999E+28) ->  | AI4: =IF(ISNUMBER(C26),"",9.99999999999999E+28) -> 1e+29 | AJ4: =IF(AH4="",9.99999999999999E+29,-9.99999999999999E+29) -> 1e+30 | AK4: =IF(AI4="",9.99999999999999E+29,-9.99999999999999E+29) -> -1e+30 | AL4: =OR(ISNUMBER(C26),AND(ISNUMBER(D26),ISNUMBER(E26))) -> TRUE | AM4: =IF(NOT(ISNUMBER(I26)),FALSE,AND(I26=INT(I26),I26>1.5)) -> TRUE | AN4: =IF(OR(ISNUMBER(O26),ISNUMBER(P26),ISNUMBER(Q26)),"",9.99999999999999E+28) -> 1e+29 | AO4: =IF(OR(ISNUMBER(N26),ISNUMBER(P26),ISNUMBER(Q26)),"",9.99999999999999E+28) ->  | AP4: =IF(OR(ISNUMBER(O26),ISNUMBER(N26),ISNUMBER(Q26)),"",9.99999999999999E+28) ->  | AQ4: =IF(OR(ISNUMBER(O26),ISNUMBER(P26),ISNUMBER(N26)),"",9.99999999999999E+28) ->  | AR4: =IF(AN4="",9.99999999999999E+29,0) -> 0 | AS4: =IF(AO4="",9.99999999999999E+29,0) -> 1e+30 | AT4: =IF(AP4="",9.99999999999999E+29,-9.99999999999999E+29) -> 1e+30 | AU4: =IF(AQ4="",9.99999999999999E+29,0) -> 1e+30 | AV4: =IF(AQ4="",9.99999999999999E+29,1) -> 1e+30 | AW4: =IF(NOT(COUNT(N26:Q26)=1),FALSE,OR(AND(ISNUMBER(N26),N26>0),AND(ISNUMBER(O26),O26>0),ISNUMBER(P26),AND(ISNUMBER(Q26),Q26>=0,Q26<=1))) -> TRUE | AX4: =AND(AL4,AM4,AW4) -> TRUE | AY4: =IF(AX4,IF(ISNUMBER(N26),N26/SQRT(I26),IF(ISNUMBER(O26),O26,IF(ISNUMBER(P26),ABS(G26/P26),ABS(G26)/TINV(Q26,K26)))),NA()) -> 6.92820323
E5: * the mean difference, OR the two sample means, AND | Y5: 0.0095 | AH5: =IF(OR(ISNUMBER(E27),ISNUMBER(D27)),"",9.99999999999999E+28) -> 1e+29 | AI5: =IF(ISNUMBER(C27),"",9.99999999999999E+28) ->  | AJ5: =IF(AH5="",9.99999999999999E+29,-9.99999999999999E+29) -> -1e+30 | AK5: =IF(AI5="",9.99999999999999E+29,-9.99999999999999E+29) -> 1e+30 | AL5: TRUE | AM5: =IF(NOT(ISNUMBER(I27)),FALSE,AND(I27=INT(I27),I27>1.5)) -> TRUE | AN5: =IF(OR(ISNUMBER(O27),ISNUMBER(P27),ISNUMBER(Q27)),"",9.99999999999999E+28) ->  | AO5: =IF(OR(ISNUMBER(N27),ISNUMBER(P27),ISNUMBER(Q27)),"",9.99999999999999E+28) ->  | AP5: =IF(OR(ISNUMBER(O27),ISNUMBER(N27),ISNUMBER(Q27)),"",9.99999999999999E+28) -> 1e+29 | AQ5: =IF(OR(ISNUMBER(O27),ISNUMBER(P27),ISNUMBER(N27)),"",9.99999999999999E+28) ->  | AR5: =IF(AN5="",9.99999999999999E+29,0) -> 1e+30 | AS5: =IF(AO5="",9.99999999999999E+29,0) -> 1e+30 | AT5: =IF(AP5="",9.99999999999999E+29,-9.99999999999999E+29) -> -1e+30 | AU5: =IF(AQ5="",9.99999999999999E+29,0) -> 1e+30 | AV5: =IF(AQ5="",9.99999999999999E+29,1) -> 1e+30 | AW5: =IF(NOT(COUNT(N27:Q27)=1),FALSE,OR(AND(ISNUMBER(N27),N27>0),AND(ISNUMBER(O27),O27>0),ISNUMBER(P27),AND(ISNUMBER(Q27),Q27>=0,Q27<=1))) -> TRUE | AX5: =AND(AL5,AM5,AW5) -> TRUE | AY5: =IF(AX5,IF(ISNUMBER(N27),N27/SQRT(I27),IF(ISNUMBER(O27),O27,IF(ISNUMBER(P27),ABS(G27/P27),ABS(G27)/TINV(Q27,K27)))),NA()) -> 28.06122449
E6: * N, the number of data pairs, AND | Y6: 0.0095 | AI6: 1e+29 | AJ6: 1e+30 | AK6: -1e+30 | AL6: TRUE | AM6: TRUE | AQ6: 1e+29 | AR6: 1e+30 | AS6: 1e+30 | AT6: 1e+30 | AU6: 0 | AV6: 1 | AW6: TRUE | AX6: TRUE | AY6: 7.532230356
E7: * the SD OR SE of the differences, OR t OR p for testing | Y7: 0.0095 | AH7: 1e+29 | AJ7: -1e+30 | AK7: 1e+30 | AL7: TRUE | AM7: FALSE | AQ7: 1e+29 | AR7: 1e+30 | AS7: 1e+30 | AT7: 1e+30 | AU7: 0 | AV7: 1 | AW7: TRUE | AX7: FALSE
F8: a null hypothesis of zero difference. | Y8: 0.0095 | AH8: 1e+29 | AJ8: -1e+30 | AK8: 1e+30 | AL8: TRUE | AM8: TRUE | AN8: 1e+29 | AR8: 0 | AS8: 1e+30 | AT8: 1e+30 | AU8: 1e+30 | AV8: 1e+30 | AW8: TRUE | AX8: TRUE | AY8: 4.5
Y9: 0.0095 | AI9: 1e+29 | AJ9: 1e+30 | AK9: -1e+30 | AL9: TRUE | AM9: FALSE | AN9: 1e+29 | AR9: 0 | AS9: 1e+30 | AT9: 1e+30 | AU9: 1e+30 | AV9: 1e+30 | AW9: TRUE | AX9: FALSE
D10: See a figure displaying the mean differences and their CIs | Y10: 0.0095 | AH10: 1e+29 | AJ10: -1e+30 | AK10: 1e+30 | AL10: TRUE | AM10: TRUE | AQ10: 1e+29 | AR10: 1e+30 | AS10: 1e+30 | AT10: 1e+30 | AU10: 0 | AV10: 1 | AW10: TRUE | AX10: TRUE | AY10: 19.64897065
Y11: 0.0095 | AH11: 1e+29 | AI11: 1e+29 | AJ11: -1e+30 | AK11: -1e+30 | AL11: FALSE | AM11: TRUE | AO11: 1e+29 | AR11: 1e+30 | AS11: 0 | AT11: 1e+30 | AU11: 1e+30 | AV11: 1e+30 | AW11: TRUE | AX11: FALSE
B12: 1 | C12: Level of confidence | Y12: 0.0095 | AI12: 1e+29 | AJ12: 1e+30 | AK12: -1e+30 | AL12: TRUE | AM12: FALSE | AN12: 1e+29 | AO12: 1e+29 | AP12: 1e+29 | AQ12: 1e+29 | AR12: 0 | AS12: 0 | AT12: -1e+30 | AU12: 0 | AV12: 1 | AW12: FALSE | AX12: FALSE
F13: C | G13: =IF(AI14<100,AI14,99+(AI14-99)/10) -> 95 | Y13: 0.0095 | AH13: =IF(OR(ISNUMBER(E35),ISNUMBER(D35)),"",9.99999999999999E+28) ->  | AI13: 1e+29 | AJ13: 1e+30 | AK13: -1e+30 | AL13: TRUE | AM13: FALSE | AN13: 1e+29 | AO13: 1e+29 | AP13: 1e+29 | AQ13: 1e+29 | AR13: 0 | AS13: 0 | AT13: -1e+30 | AU13: 0 | AV13: 1 | AW13: FALSE | AX13: FALSE
Y14: 0.0095 | AH14: for C | AI14: 95
Y15: 0.0095
Y16: 0.0095 | AH16: For display
Y17: =$G$13/10000 -> 0.0095 | AH17: Md | AI17: y | AJ17: L bars | AK17: R bars
Y18: 0.0095 | AH18: =IF(AX4,G26,NA()) -> -11 | AI18: 1 | AJ18: =IF(AX4,S26,NA()) -> 29.80965254 | AK18: =IF(AX4,S26,NA()) -> 29.80965254
Y19: 0.0095 | AH19: 55 | AI19: 2 | AJ19: 58.35651095 | AK19: 58.35651095
Y20: 0.0095 | AH20: -22 | AI20: 3 | AJ20: 15.96761505 | AK20: 15.96761505
Y21: 0.0095 | AI21: 4
Y22: 0.0095 | AH22: -92 | AI22: 5 | AJ22: 14.32100837 | AK22: 14.32100837
AI23: 6
B24: 2 | C24: Input | H24: 3 Input | N24: 4 Input | S24: Bars | T24: CI limits | AH24: 30 | AI24: 7 | AJ24: 38.98782064 | AK24: 38.98782064
C25: Md | D25: M1 | E25: M2 | G25: Md | I25: N | K25: df | L25: tcrit | N25: SDd | O25: SEd | P25: t | Q25: p | S25: MOE | T25: LL | U25: UL | V25: t | W25: p | AI25: 8
B26: 1 | D26: 55 | E26: 44 | G26: =IF(AL4,IF(ISNUMBER(C26),C26,E26-D26),"") -> -11 | I26: 3 | K26: =IF(ISNUMBER(I26),I26-1,"") -> 2 | L26: =IF(ISNUMBER(I26),TINV(1-$G$13/100,K26),"") -> 4.30265273 | N26: 12 | S26: =IF(AX4,AY4*L26,"") -> 29.80965254 | T26: =IF(AX4,G26-S26,"") -> -40.80965254 | U26: =IF(AX4,G26+S26,"") -> 18.80965254 | V26: =IF(AX4,IF(AY4>0,G26/AY4,""),"") -> -1.58771324 | W26: =IF(AX4,IF(AY4>0,TDIST(ABS(V26),K26,2),""),"") -> 0.2532713434 | AI26: 9
B27: 2 | C27: 55 | G27: =IF(AL5,IF(ISNUMBER(C27),C27,E27-D27),"") -> 55 | I27: 22 | K27: 21 | L27: 2.079613845 | P27: 1.96 | S27: 58.35651095 | T27: -3.356510949 | U27: 113.3565109 | V27: =IF(AX5,IF(AY5>0,G27/AY5,""),"") -> 1.96 | W27: =IF(AX5,IF(AY5>0,TDIST(ABS(V27),K27,2),""),"") -> 0.06339966581 | AI27: 10
B28: 3 | D28: 22 | E28: 0 | G28: -22 | I28: 17 | K28: 16 | L28: 2.119905299 | Q28: 0.01 | S28: 15.96761505 | T28: -37.96761505 | U28: -6.032384953 | V28: -2.920781622 | W28: 0.01
B29: 4 | C29: 33 | G29: 33 | Q29: 0.05
B30: 5 | C30: -92 | G30: -92 | I30: 4 | K30: 3 | L30: 3.182446305 | N30: 9 | S30: 14.32100837 | T30: -106.3210084 | U30: -77.67899163 | V30: -20.44444444 | W30: 0.0002558685142
B31: 6 | D31: -222 | E31: -220 | G31: 2 | N31: 22
B32: 7 | C32: 30 | G32: 30 | I32: 100 | K32: 99 | L32: 1.984216952 | Q32: 0.13 | S32: 38.98782064 | T32: -8.987820645 | U32: 68.98782064 | V32: 1.526797537 | W32: 0.13
B33: 8 | I33: 100 | K33: 99 | L33: 1.984216952 | O33: 7.7
B34: 9 | D34: 55 | E34: 44 | G34: -11
B35: 10 | D35: 33 | E35: 22 | G35: -11

Sheet 2 ind means same variance
D1: CIs for two means, same variance | O1: =$G$14/10000 -> 0.0095 | P1: 0.0095 | Q1: 0.0095 | R1: 0.0095 | S1: 0.0095 | T1: 0.0095 | U1: 0.0095 | V1: 0.0095 | W1: 0.0095 | X1: 0.0095 | Y1: 0.0095 | AL1: CI calculations
D2: Enter data for up to 10 experiments, each comparing two independent | Y2: =$G$14/10000 -> 0.0095 | AK2: Blank if: | AM2: Block entry if: | AP2: n1 n2 | AQ2: Blank if: | AU2: Block entry if: | AZ2: SD1 2 | BA2: SE1 2 | BE2: If SD1 2 | BF2: If SE1 2 | BG2: If t | BH2: If p
E3: groups, assuming population variances are equal. | Y3: 0.0095 | AK3: diff grey | AL3: 1&2grey | AM3: diff grey | AN3: 1&2grey | AO3: diff OK? | AP3: OK? | AQ3: SD grey | AR3: SE grey | AS3: t grey | AT3: p grey | AU3: SDdgrey | AV3: SEdgrey | AW3: t grey | AX3: p greyL | AY3: p greyU | AZ3: OK? | BA3: OK? | BB3: t OK? | BC3: p OK? | BD3: All OK? | BE3: SEdiff | BF3: SEdiff | BG3: SEdiff | BH3: SEdiff | BI3: SEdiff
Y4: 0.0095 | AK4: =IF(OR(ISNUMBER(E26),ISNUMBER(D26)),"",9.99999999999999E+28) ->  | AL4: =IF(ISNUMBER(C26),"",9.99999999999999E+28) -> 1e+29 | AM4: =IF(AK4="",9.99999999999999E+29,-9.99999999999999E+29) -> 1e+30 | AN4: =IF(AL4="",9.99999999999999E+29,-9.99999999999999E+29) -> -1e+30 | AO4: =OR(ISNUMBER(C26),AND(ISNUMBER(D26),ISNUMBER(E26))) -> TRUE | AP4: =IF(NOT(AND(ISNUMBER(I26),ISNUMBER(J26))),FALSE,AND(I26=INT(I26),I26>1.5,J26=INT(J26),J26>1.5)) -> TRUE | AQ4: =IF(OR(ISNUMBER(Q26),ISNUMBER(R26),ISNUMBER(S26),ISNUMBER(T26)),"",9.99999999999999E+28) -> 1e+29 | AR4: =IF(OR(ISNUMBER(O26),ISNUMBER(P26),ISNUMBER(S26),ISNUMBER(T26)),"",9.99999999999999E+28) ->  | AS4: =IF(OR(ISNUMBER(O26),ISNUMBER(P26),ISNUMBER(R26),ISNUMBER(Q26),ISNUMBER(T26)),"",9.99999999999999E+28) ->  | AT4: =IF(OR(ISNUMBER(O26),ISNUMBER(P26),ISNUMBER(R26),ISNUMBER(S26),ISNUMBER(Q26)),"",9.99999999999999E+28) ->  | AU4: =IF(AQ4="",9.99999999999999E+29,0) -> 0 | AV4: =IF(AR4="",9.99999999999999E+29,0) -> 1e+30 | AW4: =IF(AS4="",9.99999999999999E+29,-9.99999999999999E+29) -> 1e+30 | AX4: =IF(AT4="",9.99999999999999E+29,0) -> 1e+30 | AY4: =IF(AT4="",9.99999999999999E+29,1) -> 1e+30 | AZ4: =IF(NOT(AND(ISNUMBER(O26),ISNUMBER(P26))),0,IF(AND(O26>0,P26>0),1,0)) -> 1 | BA4: =IF(NOT(AND(ISNUMBER(Q26),ISNUMBER(R26))),0,IF(AND(Q26>0,R26>0),1,0)) -> 0 | BB4: =IF(ISNUMBER(S26),1,0) -> 0 | BC4: =IF(NOT(ISNUMBER(T26)),0,IF(AND(T26>=0,T26<=1),1,0)) -> 0 | BD4: =AND(AO4,AP4,SUM(AZ4:BC4)=1) -> TRUE | BE4: =IF(BD4,IF(ISNUMBER(O26),SQRT(((I26-1)*O26^2+(J26-1)*P26^2)/L26)*SQRT(1/I26+1/J26),""),"") -> 3.317981314 | BF4: =IF(BD4,IF(ISNUMBER(Q26),SQRT(((I26-1)*I26*Q26^2+(J26-1)*J26*R26^2)/L26)*SQRT(1/I26+1/J26),""),"") ->  | BG4: =IF(BD4,IF(ISNUMBER(S26),ABS(G26/S26),""),"") ->  | BH4: =IF(BD4,IF(ISNUMBER(T26),ABS(G26)/TINV(T26,L26),""),"") ->  | BI4: =IF(BD4,IF(ISNUMBER(BE4),BE4,IF(ISNUMBER(BF4),BF4,IF(ISNUMBER(BG4),BG4,BH4))),NA()) -> 3.317981314
D5: For each experiment, enter: | Y5: 0.0095 | AK5: =IF(OR(ISNUMBER(E27),ISNUMBER(D27)),"",9.99999999999999E+28) -> 1e+29 | AL5: =IF(ISNUMBER(C27),"",9.99999999999999E+28) ->  | AM5: -1e+30 | AN5: 1e+30 | AO5: TRUE | AP5: =IF(NOT(AND(ISNUMBER(I27),ISNUMBER(J27))),FALSE,AND(I27=INT(I27),I27>1.5,J27=INT(J27),J27>1.5)) -> TRUE | AQ5: =IF(OR(ISNUMBER(Q27),ISNUMBER(R27),ISNUMBER(S27),ISNUMBER(T27)),"",9.99999999999999E+28) ->  | AR5: =IF(OR(ISNUMBER(O27),ISNUMBER(P27),ISNUMBER(S27),ISNUMBER(T27)),"",9.99999999999999E+28) ->  | AS5: =IF(OR(ISNUMBER(O27),ISNUMBER(P27),ISNUMBER(R27),ISNUMBER(Q27),ISNUMBER(T27)),"",9.99999999999999E+28) -> 1e+29 | AT5: =IF(OR(ISNUMBER(O27),ISNUMBER(P27),ISNUMBER(R27),ISNUMBER(S27),ISNUMBER(Q27)),"",9.99999999999999E+28) ->  | AU5: 1e+30 | AV5: 1e+30 | AW5: =IF(AS5="",9.99999999999999E+29,-9.99999999999999E+29) -> -1e+30 | AX5: 1e+30 | AY5: 1e+30 | AZ5: =IF(NOT(AND(ISNUMBER(O27),ISNUMBER(P27))),0,IF(AND(O27>0,P27>0),1,0)) -> 0 | BA5: =IF(NOT(AND(ISNUMBER(Q27),ISNUMBER(R27))),0,IF(AND(Q27>0,R27>0),1,0)) -> 0 | BB5: =IF(ISNUMBER(S27),1,0) -> 1 | BC5: =IF(NOT(ISNUMBER(T27)),0,IF(AND(T27>=0,T27<=1),1,0)) -> 0 | BD5: =AND(AO5,AP5,SUM(AZ5:BC5)=1) -> TRUE | BE5: =IF(BD5,IF(ISNUMBER(O27),SQRT(((I27-1)*O27^2+(J27-1)*P27^2)/L27)*SQRT(1/I27+1/J27),""),"") ->  | BF5: =IF(BD5,IF(ISNUMBER(Q27),SQRT(((I27-1)*I27*Q27^2+(J27-1)*J27*R27^2)/L27)*SQRT(1/I27+1/J27),""),"") ->  | BG5: =IF(BD5,IF(ISNUMBER(S27),ABS(G27/S27),""),"") -> 5.907172996 | BH5: =IF(BD5,IF(ISNUMBER(T27),ABS(G27)/TINV(T27,L27),""),"") ->  | BI5: =IF(BD5,IF(ISNUMBER(BE5),BE5,IF(ISNUMBER(BF5),BF5,IF(ISNUMBER(BG5),BG5,BH5))),NA()) -> 5.907172996
E6: * Difference between the means, OR the two means, AND | Y6: 0.0095 | AL6: 1e+29 | AM6: 1e+30 | AN6: -1e+30 | AO6: TRUE | AP6: TRUE | AT6: 1e+29 | AU6: 1e+30 | AV6: 1e+30 | AW6: 1e+30 | AX6: 0 | AY6: 1 | AZ6: 0 | BA6: 0 | BB6: 0 | BC6: 1 | BD6: TRUE | BH6: 5.573863414 | BI6: 5.573863414
E7: * N1 and N2, the two sample sizes, AND | Y7: 0.0095 | AK7: 1e+29 | AM7: -1e+30 | AN7: 1e+30 | AO7: TRUE | AP7: FALSE | AT7: 1e+29 | AU7: 1e+30 | AV7: 1e+30 | AW7: 1e+30 | AX7: 0 | AY7: 1 | AZ7: 0 | BA7: 0 | BB7: 0 | BC7: 1 | BD7: FALSE
E8: * the SD for each group, OR the SE for each group, OR t OR p | Y8: 0.0095 | AK8: 1e+29 | AM8: -1e+30 | AN8: 1e+30 | AO8: TRUE | AP8: TRUE | AR8: 1e+29 | AU8: 1e+30 | AV8: 0 | AW8: 1e+30 | AX8: 1e+30 | AY8: 1e+30 | AZ8: 0 | BA8: 1 | BB8: 0 | BC8: 0 | BD8: TRUE | BF8: 7.140028011 | BI8: 7.140028011
F9: for testing a null hypothesis of zero difference. | Y9: 0.0095 | AL9: 1e+29 | AM9: 1e+30 | AN9: -1e+30 | AO9: TRUE | AP9: TRUE | AQ9: 1e+29 | AU9: 0 | AV9: 1e+30 | AW9: 1e+30 | AX9: 1e+30 | AY9: 1e+30 | AZ9: 1 | BA9: 0 | BB9: 0 | BC9: 0 | BD9: TRUE | BE9: 6.27219779 | BI9: 6.27219779
Y10: 0.0095 | AK10: 1e+29 | AM10: -1e+30 | AN10: 1e+30 | AO10: TRUE | AP10: TRUE | AT10: 1e+29 | AU10: 1e+30 | AV10: 1e+30 | AW10: 1e+30 | AX10: 0 | AY10: 1 | AZ10: 0 | BA10: 0 | BB10: 0 | BC10: 1 | BD10: TRUE | BH10: 6.050947932 | BI10: 6.050947932
D11: See a figure displaying the differences between means, and their CIs | Y11: 0.0095 | AK11: 1e+29 | AL11: 1e+29 | AM11: -1e+30 | AN11: -1e+30 | AO11: FALSE | AP11: TRUE | AR11: 1e+29 | AU11: 1e+30 | AV11: 0 | AW11: 1e+30 | AX11: 1e+30 | AY11: 1e+30 | AZ11: 0 | BA11: 1 | BB11: 0 | BC11: 0 | BD11: FALSE
Y12: 0.0095 | AL12: 1e+29 | AM12: 1e+30 | AN12: -1e+30 | AO12: TRUE | AP12: FALSE | AQ12: 1e+29 | AR12: 1e+29 | AS12: 1e+29 | AT12: 1e+29 | AU12: 0 | AV12: 0 | AW12: -1e+30 | AX12: 0 | AY12: 1 | AZ12: 0 | BA12: 0 | BB12: 0 | BC12: 0 | BD12: FALSE
B13: 1 | C13: Level of confidence | Y13: 0.0095 | AK13: 1e+29 | AL13: 1e+29 | AM13: -1e+30 | AN13: -1e+30 | AO13: FALSE | AP13: FALSE | AQ13: 1e+29 | AR13: 1e+29 | AS13: 1e+29 | AT13: 1e+29 | AU13: 0 | AV13: 0 | AW13: -1e+30 | AX13: 0 | AY13: 1 | AZ13: 0 | BA13: 0 | BB13: 0 | BC13: 0 | BD13: FALSE
F14: C | G14: =IF(AL14<100,AL14,99+(AL14-99)/10) -> 95 | Y14: 0.0095 | AK14: for C | AL14: 95
Y15: 0.0095
Y16: 0.0095 | AK16: For display
Y17: =$G$14/10000 -> 0.0095 | AK17: M1 - M2 | AL17: y | AM17: L bars | AN17: R bars
Y18: 0.0095 | AK18: =IF(BD4,G26,NA()) -> -15.6 | AL18: 1 | AM18: =IF(BD4,V26,NA()) -> 6.970820072 | AN18: =IF(BD4,V26,NA()) -> 6.970820072
Y19: 0.0095 | AK19: 14 | AL19: 2 | AM19: 12.01823382 | AN19: 12.01823382
Y20: 0.0095 | AK20: 10 | AL20: 3 | AM20: 11.24851177 | AN20: 11.24851177
Y21: 0.0095 | AL21: 4
Y22: 0.0095 | AK22: 19 | AL22: 5 | AM22: 17.47101916 | AN22: 17.47101916
AK23: -29 | AL23: 6 | AM23: 12.64909236 | AN23: 12.64909236
B24: 2 | C24: Input | I24: 3 Input | O24: 4 Input | V24: Bars | W24: CI limits | AK24: 9.2 | AL24: 7 | AM24: 11.93257508 | AN24: 11.93257508
C25: M2 - M1 | D25: M1 | E25: M2 | G25: M2 - M1 | I25: N1 | J25: N2 | L25: df | M25: tcrit | O25: SD1 | P25: SD2 | Q25: SE1 | R25: SE2 | S25: t | T25: p | V25: MOE | W25: LL | X25: UL | Y25: t | Z25: p | AL25: 8
B26: 1 | D26: 43.2 | E26: 27.6 | G26: =IF(AO4,IF(ISNUMBER(C26),C26,E26-D26),"") -> -15.6 | I26: 10 | J26: 10 | L26: =IF(AND(ISNUMBER(I26),ISNUMBER(J26)),I26+J26-2,"") -> 18 | M26: =IF(ISNUMBER(L26),TINV(1-$G$14/100,L26),"") -> 2.10092204 | O26: 9.7 | P26: 4 | V26: =IF(BD4,BI4*M26,"") -> 6.970820072 | W26: =IF(BD4,G26-V26,"") -> -22.57082007 | X26: =IF(BD4,G26+V26,"") -> -8.629179928 | Y26: =IF(BD4,IF(BI4>0,G26/BI4,""),"") -> -4.701653965 | Z26: =IF(BD4,IF(BI4>0,TDIST(ABS(Y26),L26,2),""),"") -> 0.0001778048812 | AL26: 9
B27: 2 | C27: 14 | G27: =IF(AO5,IF(ISNUMBER(C27),C27,E27-D27),"") -> 14 | I27: 13 | J27: 22 | L27: =IF(AND(ISNUMBER(I27),ISNUMBER(J27)),I27+J27-2,"") -> 33 | M27: =IF(ISNUMBER(L27),TINV(1-$G$14/100,L27),"") -> 2.034515297 | S27: 2.37 | V27: 12.01823382 | W27: 1.981766175 | X27: 26.01823382 | Y27: =IF(BD5,IF(BI5>0,G27/BI5,""),"") -> 2.37 | Z27: =IF(BD5,IF(BI5>0,TDIST(ABS(Y27),L27,2),""),"") -> 0.02378746836 | AL27: 10
B28: 3 | D28: 40 | E28: 50 | G28: 10 | I28: 22 | J28: 22 | L28: 42 | M28: 2.018081703 | T28: 0.08 | V28: 11.24851177 | W28: -1.248511769 | X28: 21.24851177 | Y28: 1.794087737 | Z28: 0.08
B29: 4 | C29: 23.65 | G29: 23.65 | T29: 0.14
B30: 5 | C30: 19 | G30: 19 | I30: 4 | J30: 4 | L30: 6 | M30: 2.446911851 | Q30: 4.3 | R30: 5.7 | V30: 17.47101916 | W30: 1.528980842 | X30: 36.47101916 | Y30: 2.661053986 | Z30: 0.03747126397
B31: 6 | D31: -15 | E31: -44 | G31: -29 | I31: 20 | J31: 25 | L31: 43 | M31: 2.016692199 | O31: 22 | P31: 20 | V31: 12.64909236 | W31: -41.64909236 | X31: -16.35090764 | Y31: -4.623578683 | Z31: 3.437010517e-05
B32: 7 | C32: 9.2 | G32: 9.2 | I32: 100 | J32: 100 | L32: 198 | M32: 1.972017478 | T32: 0.13 | V32: 11.93257508 | W32: -2.73257508 | X32: 21.13257508 | Y32: 1.520422933 | Z32: 0.13
B33: 8 | I33: 100 | J33: 100 | L33: 198 | M33: 1.972017478 | Q33: 3 | R33: 7.7
B34: 9 | D34: 55 | E34: 66 | G34: 11
B35: 10

Sheet 2 ind means general
D1: CIs for two means, without assuming same variance | O1: =$G$14/10000 -> 0.0095 | P1: 0.0095 | Q1: 0.0095 | R1: 0.0095 | S1: 0.0095 | T1: 0.0095 | U1: 0.0095 | V1: 0.0095 | W1: 0.0095 | X1: 0.0095 | Y1: 0.0095 | AL1: CI calculations
D2: Enter data for up to 10 experiments, each comparing two independent | Y2: =$G$14/10000 -> 0.0095 | AK2: Blank if: | AM2: Block entry if: | AP2: n1 n2 | AQ2: Blank if: | AU2: Block entry if: | AZ2: SD1 2 | BA2: SE1 2 | BE2: If SD1 2 | BF2: If SE1 2 | BG2: If t | BH2: If p
E3: groups. Do not assume population variances are equal. | Y3: 0.0095 | AK3: diff grey | AL3: 1&2grey | AM3: diff grey | AN3: 1&2grey | AO3: diff OK? | AP3: OK? | AQ3: SD grey | AR3: SE grey | AS3: t grey | AT3: p grey | AU3: SDdgrey | AV3: SEdgrey | AW3: t grey | AX3: p greyL | AY3: p greyU | AZ3: OK? | BA3: OK? | BB3: t OK? | BC3: p OK? | BD3: All OK? | BE3: SEdiff | BF3: SEdiff | BG3: SEdiff | BH3: SEdiff | BI3: SEdiff | BJ3: q SD SE | BK3: m | BL3: t crit | BM3: Approx df
Y4: 0.0095 | AK4: =IF(OR(ISNUMBER(E26),ISNUMBER(D26)),"",9.99999999999999E+28) ->  | AL4: =IF(ISNUMBER(C26),"",9.99999999999999E+28) -> 1e+29 | AM4: =IF(AK4="",9.99999999999999E+29,-9.99999999999999E+29) -> 1e+30 | AN4: =IF(AL4="",9.99999999999999E+29,-9.99999999999999E+29) -> -1e+30 | AO4: =OR(ISNUMBER(C26),AND(ISNUMBER(D26),ISNUMBER(E26))) -> TRUE | AP4: =IF(NOT(AND(ISNUMBER(I26),ISNUMBER(J26))),FALSE,AND(I26=INT(I26),I26>1.5,J26=INT(J26),J26>1.5)) -> TRUE | AQ4: =IF(OR(ISNUMBER(Q26),ISNUMBER(R26),ISNUMBER(S26),ISNUMBER(T26)),"",9.99999999999999E+28) -> 1e+29 | AR4: =IF(OR(ISNUMBER(O26),ISNUMBER(P26),ISNUMBER(S26),ISNUMBER(T26)),"",9.99999999999999E+28) ->  | AS4: =IF(OR(ISNUMBER(O26),ISNUMBER(P26),ISNUMBER(R26),ISNUMBER(Q26),ISNUMBER(T26)),"",9.99999999999999E+28) ->  | AT4: =IF(OR(ISNUMBER(O26),ISNUMBER(P26),ISNUMBER(R26),ISNUMBER(S26),ISNUMBER(Q26)),"",9.99999999999999E+28) ->  | AU4: =IF(AQ4="",9.99999999999999E+29,0) -> 0 | AV4: =IF(AR4="",9.99999999999999E+29,0) -> 1e+30 | AW4: =IF(AS4="",9.99999999999999E+29,-9.99999999999999E+29) -> 1e+30 | AX4: =IF(AT4="",9.99999999999999E+29,0) -> 1e+30 | AY4: =IF(AT4="",9.99999999999999E+29,1) -> 1e+30 | AZ4: =IF(NOT(AND(ISNUMBER(O26),ISNUMBER(P26))),0,IF(AND(O26>0,P26>0),1,0)) -> 1 | BA4: =IF(NOT(AND(ISNUMBER(Q26),ISNUMBER(R26))),0,IF(AND(Q26>0,R26>0),1,0)) -> 0 | BB4: =IF(ISNUMBER(S26),1,0) -> 0 | BC4: =IF(NOT(ISNUMBER(T26)),0,IF(AND(T26>=0,T26<=1),1,0)) -> 0 | BD4: =AND(AO4,AP4,SUM(AZ4:BC4)=1) -> TRUE | BE4: =IF(BD4,IF(ISNUMBER(O26),SQRT(O26^2/I26+P26^2/J26),""),"") -> 3.317981314 | BF4: =IF(BD4,IF(ISNUMBER(Q26),SQRT(Q26^2+R26^2),""),"") ->  | BG4: =IF(BD4,IF(ISNUMBER(S26),ABS(G26/S26),""),"") ->  | BH4: =IF(BD4,IF(ISNUMBER(T26),ABS(G26/TINV(T26,L26)),""),"") ->  | BI4: =IF(BD4,IF(ISNUMBER(BE4),BE4,IF(ISNUMBER(BF4),BF4,IF(ISNUMBER(BG4),BG4,BH4))),NA()) -> 3.317981314 | BJ4: =IF(BD4,IF(ISNUMBER(O26),P26^2/O26^2,IF(ISNUMBER(Q26),(J26*R26^2)/(I26*Q26^2),"")),"") -> 0.1700499522 | BK4: =IF(ISNUMBER(BJ4),(1/I26+BJ4/J26)^2/(1/(I26^2*(I26-1))+BJ4^2/(J26^2*(J26-1))),"") -> 11.97487473 | BL4: =IF(BD4,IF(ISNUMBER(BJ4),(INT(BK4)+1-BK4)*TINV(1-$G$14/100,INT(BK4))+(BK4-INT(BK4))*TINV(1-$G$14/100,INT(BK4)+1),TINV(1-$G$14/100,L26)),"") -> 2.179369916 | BM4: =IF(SUM(BB4:BC4)=1,-9.99999999999999E+29,9.99999999999999E+29) -> 1e+30
D5: For each experiment, enter: | Y5: 0.0095 | AK5: =IF(OR(ISNUMBER(E27),ISNUMBER(D27)),"",9.99999999999999E+28) -> 1e+29 | AL5: =IF(ISNUMBER(C27),"",9.99999999999999E+28) ->  | AM5: -1e+30 | AN5: 1e+30 | AO5: TRUE | AP5: TRUE | AQ5: =IF(OR(ISNUMBER(Q27),ISNUMBER(R27),ISNUMBER(S27),ISNUMBER(T27)),"",9.99999999999999E+28) ->  | AR5: =IF(OR(ISNUMBER(O27),ISNUMBER(P27),ISNUMBER(S27),ISNUMBER(T27)),"",9.99999999999999E+28) ->  | AS5: =IF(OR(ISNUMBER(O27),ISNUMBER(P27),ISNUMBER(R27),ISNUMBER(Q27),ISNUMBER(T27)),"",9.99999999999999E+28) -> 1e+29 | AT5: =IF(OR(ISNUMBER(O27),ISNUMBER(P27),ISNUMBER(R27),ISNUMBER(S27),ISNUMBER(Q27)),"",9.99999999999999E+28) ->  | AU5: 1e+30 | AV5: 1e+30 | AW5: -1e+30 | AX5: 1e+30 | AY5: 1e+30 | AZ5: 0 | BA5: 0 | BB5: 1 | BC5: 0 | BD5: TRUE | BE5: =IF(BD5,IF(ISNUMBER(O27),SQRT(O27^2/I27+P27^2/J27),""),"") ->  | BF5: =IF(BD5,IF(ISNUMBER(Q27),SQRT(Q27^2+R27^2),""),"") ->  | BG5: 5.907172996 | BH5: =IF(BD5,IF(ISNUMBER(T27),ABS(G27/TINV(T27,L27)),""),"") ->  | BI5: =IF(BD5,IF(ISNUMBER(BE5),BE5,IF(ISNUMBER(BF5),BF5,IF(ISNUMBER(BG5),BG5,BH5))),NA()) -> 5.907172996 | BJ5: =IF(BD5,IF(ISNUMBER(O27),P27^2/O27^2,IF(ISNUMBER(Q27),(J27*R27^2)/(I27*Q27^2),"")),"") ->  | BK5: =IF(ISNUMBER(BJ5),(1/I27+BJ5/J27)^2/(1/(I27^2*(I27-1))+BJ5^2/(J27^2*(J27-1))),"") ->  | BL5: =IF(BD5,IF(ISNUMBER(BJ5),(INT(BK5)+1-BK5)*TINV(1-$G$14/100,INT(BK5))+(BK5-INT(BK5))*TINV(1-$G$14/100,INT(BK5)+1),TINV(1-$G$14/100,L27)),"") -> 2.17881283 | BM5: =IF(SUM(BB5:BC5)=1,-9.99999999999999E+29,9.99999999999999E+29) -> -1e+30
E6: * Difference between the means, OR the two means, AND | Y6: 0.0095 | AL6: 1e+29 | AM6: 1e+30 | AN6: -1e+30 | AO6: TRUE | AP6: TRUE | AT6: 1e+29 | AU6: 1e+30 | AV6: 1e+30 | AW6: 1e+30 | AX6: 0 | AY6: 1 | AZ6: 0 | BA6: 0 | BB6: 0 | BC6: 1 | BD6: TRUE | BH6: 5.435813223 | BI6: 5.435813223 | BL6: 2.079613845 | BM6: -1e+30
E7: * N1 and N2, the two sample sizes, AND | Y7: 0.0095 | AK7: 1e+29 | AM7: -1e+30 | AN7: 1e+30 | AO7: TRUE | AP7: FALSE | AT7: 1e+29 | AU7: 1e+30 | AV7: 1e+30 | AW7: 1e+30 | AX7: 0 | AY7: 1 | AZ7: 0 | BA7: 0 | BB7: 0 | BC7: 1 | BD7: FALSE | BM7: -1e+30
E8: * the SD for each group, OR the SE for each group, OR t OR p | Y8: 0.0095 | AK8: 1e+29 | AM8: -1e+30 | AN8: 1e+30 | AO8: TRUE | AP8: TRUE | AR8: 1e+29 | AU8: 1e+30 | AV8: 0 | AW8: 1e+30 | AX8: 1e+30 | AY8: 1e+30 | AZ8: 0 | BA8: 1 | BB8: 0 | BC8: 0 | BD8: TRUE | BF8: 7.140028011 | BI8: 7.140028011 | BJ8: 1.757166036 | BK8: 5.579242697 | BL8: 2.4989469 | BM8: 1e+30
F9: for testing a null hypothesis of zero difference. | Y9: 0.0095 | AL9: 1e+29 | AM9: 1e+30 | AN9: -1e+30 | AO9: TRUE | AP9: TRUE | AQ9: 1e+29 | AU9: 0 | AV9: 1e+30 | AW9: 1e+30 | AX9: 1e+30 | AY9: 1e+30 | AZ9: 1 | BA9: 0 | BB9: 0 | BC9: 0 | BD9: TRUE | BE9: 6.340346994 | BI9: 6.340346994 | BJ9: 0.826446281 | BK9: 38.95027316 | BL9: 2.022775617 | BM9: 1e+30
Y10: 0.0095 | AK10: 1e+29 | AM10: -1e+30 | AN10: 1e+30 | AO10: TRUE | AP10: TRUE | AT10: 1e+29 | AU10: 1e+30 | AV10: 1e+30 | AW10: 1e+30 | AX10: 0 | AY10: 1 | AZ10: 0 | BA10: 0 | BB10: 0 | BC10: 1 | BD10: TRUE | BH10: 6.025684333 | BI10: 6.025684333 | BL10: 1.984216952 | BM10: -1e+30
D11: See a figure displaying the differences between means, and their CIs | Y11: 0.0095 | AK11: 1e+29 | AL11: 1e+29 | AM11: -1e+30 | AN11: -1e+30 | AO11: FALSE | AP11: TRUE | AR11: 1e+29 | AU11: 1e+30 | AV11: 0 | AW11: 1e+30 | AX11: 1e+30 | AY11: 1e+30 | AZ11: 0 | BA11: 1 | BB11: 0 | BC11: 0 | BD11: FALSE | BM11: 1e+30
Y12: 0.0095 | AL12: 1e+29 | AM12: 1e+30 | AN12: -1e+30 | AO12: TRUE | AP12: FALSE | AQ12: 1e+29 | AR12: 1e+29 | AS12: 1e+29 | AT12: 1e+29 | AU12: 0 | AV12: 0 | AW12: -1e+30 | AX12: 0 | AY12: 1 | AZ12: 0 | BA12: 0 | BB12: 0 | BC12: 0 | BD12: FALSE | BM12: 1e+30
B13: 1 | C13: Level of confidence | Y13: 0.0095 | AK13: 1e+29 | AL13: 1e+29 | AM13: -1e+30 | AN13: -1e+30 | AO13: FALSE | AP13: FALSE | AQ13: 1e+29 | AR13: 1e+29 | AS13: 1e+29 | AT13: 1e+29 | AU13: 0 | AV13: 0 | AW13: -1e+30 | AX13: 0 | AY13: 1 | AZ13: 0 | BA13: 0 | BB13: 0 | BC13: 0 | BD13: FALSE | BM13: 1e+30
F14: C | G14: =IF(AL14<100,AL14,99+(AL14-99)/10) -> 95 | Y14: 0.0095 | AK14: for C | AL14: 95
Y15: 0.0095
Y16: 0.0095 | AK16: For display
Y17: 0.0095 | AK17: M1 - M2 | AL17: y | AM17: L bars | AN17: R bars
Y18: 0.0095 | AK18: =IF(BD4,G26,NA()) -> -15.6 | AL18: 1 | AM18: =IF(BD4,V26,NA()) -> 7.231108656 | AN18: =IF(BD4,V26,NA()) -> 7.231108656
Y19: 0.0095 | AK19: 14 | AL19: 2 | AM19: 12.87062431 | AN19: 12.87062431
Y20: 0.0095 | AK20: 10 | AL20: 3 | AM20: 11.30439244 | AN20: 11.30439244
Y21: 0.0095 | AL21: 4
Y22: 0.0095 | AK22: 19 | AL22: 5 | AM22: 17.84255087 | AN22: 17.84255087
AK23: -29 | AL23: 6 | AM23: 12.8250993 | AN23: 12.8250993
B24: 2 | C24: Input | I24: 3 Input | O24: 4 Input | V24: Bars | W24: CI limits | AK24: 9.2 | AL24: 7 | AM24: 11.956265 | AN24: 11.956265
C25: M2 - M1 | D25: M1 | E25: M2 | G25: M2 - M1 | I25: N1 | J25: N2 | L25: df | M25: tcrit | O25: SD1 | P25: SD2 | Q25: SE1 | R25: SE2 | S25: t | T25: p | V25: MOE | W25: LL | X25: UL | Y25: t | Z25: p | AL25: 8
B26: 1 | D26: 43.2 | E26: 27.6 | G26: =IF(AO4,IF(ISNUMBER(C26),C26,E26-D26),"") -> -15.6 | I26: 10 | J26: 10 | L26: =IF(BD4,IF(SUM(AZ4:BA4)=1,BK4,MIN(I26:J26)-1),"") -> 11.97487473 | M26: =IF(ISNUMBER(BL4),BL4,"") -> 2.179369916 | O26: 9.7 | P26: 4 | V26: =IF(BD4,BI4*M26,"") -> 7.231108656 | W26: =IF(BD4,G26-V26,"") -> -22.83110866 | X26: =IF(BD4,G26+V26,"") -> -8.368891344 | Y26: =IF(BD4,IF(BI4>0,G26/BI4,""),"") -> -4.701653965 | Z26: =IF(BD4,IF(BI4>0,TDIST(ABS(Y26),L26,2),""),"") -> 0.0006484038993 | AL26: 9
B27: 2 | C27: 14 | G27: =IF(AO5,IF(ISNUMBER(C27),C27,E27-D27),"") -> 14 | I27: 13 | J27: 22 | L27: =IF(BD5,IF(SUM(AZ5:BA5)=1,BK5,MIN(I27:J27)-1),"") -> 12 | M27: =IF(ISNUMBER(BL5),BL5,"") -> 2.17881283 | S27: 2.37 | V27: 12.87062431 | W27: 1.12937569 | X27: 26.87062431 | Y27: =IF(BD5,IF(BI5>0,G27/BI5,""),"") -> 2.37 | Z27: =IF(BD5,IF(BI5>0,TDIST(ABS(Y27),L27,2),""),"") -> 0.03540143244 | AL27: 10
B28: 3 | D28: 40 | E28: 50 | G28: 10 | I28: 22 | J28: 22 | L28: 21 | M28: 2.079613845 | T28: 0.08 | V28: 11.30439244 | W28: -1.304392435 | X28: 21.30439244 | Y28: 1.839651142 | Z28: 0.08
B29: 4 | C29: 23.65 | G29: 23.65 | T29: 0.14
B30: 5 | C30: 19 | G30: 19 | I30: 4 | J30: 4 | L30: 5.579242697 | M30: 2.4989469 | Q30: 4.3 | R30: 5.7 | V30: 17.84255087 | W30: 1.157449134 | X30: 36.84255087 | Y30: 2.661053986 | Z30: 0.04482714838
B31: 6 | D31: -15 | E31: -44 | G31: -29 | I31: 20 | J31: 25 | L31: 38.95027316 | M31: 2.022775617 | O31: 22 | P31: 20 | V31: 12.8250993 | W31: -41.8250993 | X31: -16.1749007 | Y31: -4.57388216 | Z31: 4.976606708e-05
B32: 7 | C32: 9.2 | G32: 9.2 | I32: 100 | J32: 100 | L32: 99 | M32: 1.984216952 | T32: 0.13 | V32: 11.956265 | W32: -2.756264998 | X32: 21.156265 | Y32: 1.526797537 | Z32: 0.13
B33: 8 | I33: 100 | J33: 100 | Q33: 3 | R33: 7.7
B34: 9 | D34: 55 | E34: 66 | G34: 11
B35: 10

Sheet Known CI limits
D1: CIs when lower and upper limits are known | M1: =$F$10/10000 -> 0.0095 | N1: 0.0095 | O1: 0.0095 | P1: 0.0095 | Q1: 0.0095 | R1: 0.0095 | S1: 0.0095 | T1: 0.0095 | U1: 0.0095 | V1: 0.0095
D2: Enter up to 10 point estimates, each | V2: =$F$10/10000 -> 0.0095
E3: with the LL and UL of the CI. | V3: 0.0095 | AF3: Point | AG3: Point | AH3: Point | AI3: Point | AJ3: OK | AK3: OK
V4: 0.0095 | AF4: est & L | AG4: est & U | AH4: est. L | AI4: est. R | AJ4: for L? | AK4: for R?
D5: See a figure displaying these point estimates | V5: 0.0095 | AF5: =IF(ISBLANK(F15),-9.99999999999999E+29,F15) -> 12 | AG5: =IF(ISBLANK(G15),9.99999999999999E+29,G15) -> 27.3 | AH5: =IF(ISNUMBER(C15),C15,-9.99999999999999E+29) -> 18.5 | AI5: =IF(ISNUMBER(C15),C15,9.99999999999999E+29) -> 18.5 | AJ5: =IF(NOT(AND(ISNUMBER(C15),ISNUMBER(F15))),FALSE,C15>=F15) -> TRUE | AK5: =IF(NOT(AND(ISNUMBER(C15),ISNUMBER(G15))),FALSE,C15<=G15) -> TRUE
E6: and their CIs | V6: 0.0095 | AF6: =IF(ISBLANK(F16),-9.99999999999999E+29,F16) -> 10 | AG6: =IF(ISBLANK(G16),9.99999999999999E+29,G16) -> 15.4 | AH6: 12.55 | AI6: 12.55 | AJ6: TRUE | AK6: TRUE
V7: 0.0095 | AF7: 16.8 | AG7: 25.9 | AH7: 21 | AI7: 21 | AJ7: TRUE | AK7: TRUE
V8: 0.0095 | AF8: 15 | AG8: 33.1 | AH8: 23.4 | AI8: 23.4 | AJ8: TRUE | AK8: TRUE
B9: 1 | C9: Level of confidence | V9: 0.0095 | AF9: 8.2 | AG9: 21 | AH9: 14.75 | AI9: 14.75 | AJ9: TRUE | AK9: TRUE
E10: C | F10: 95 | V10: 0.0095 | AF10: 8.6 | AG10: 28.4 | AH10: 19 | AI10: 19 | AJ10: TRUE | AK10: TRUE
V11: 0.0095 | AF11: -1e+30 | AG11: 1e+30 | AH11: -1e+30 | AI11: 1e+30 | AJ11: FALSE | AK11: FALSE
V12: 0.0095 | AF12: -1e+30 | AG12: 1e+30 | AH12: -1e+30 | AI12: 1e+30 | AJ12: FALSE | AK12: FALSE
B13: 2 | C13: Point | F13: 3 CI limits | I13: 4 CI bars | V13: 0.0095 | AF13: -1e+30 | AG13: 1e+30 | AH13: -1e+30 | AI13: 1e+30 | AJ13: FALSE | AK13: FALSE
C14: estimate | F14: LL | G14: UL | I14: Left | J14: Right | K14: MOEav | V14: 0.0095 | AF14: -1e+30 | AG14: 1e+30 | AH14: -1e+30 | AI14: 1e+30 | AJ14: FALSE | AK14: FALSE
B15: 1 | C15: 18.5 | F15: 12 | G15: 27.3 | I15: =IF(AJ5,AH18,"") -> 6.5 | J15: =IF(AK5,AI18,"") -> 8.8 | K15: =IF(AND(AJ5,AK5),(AH18+AI18)/2,"") -> 7.65 | V15: 0.0095
B16: 2 | C16: 12.55 | F16: 10 | G16: 15.4 | I16: 2.55 | J16: 2.85 | K16: =IF(AND(AJ6,AK6),(AH19+AI19)/2,"") -> 2.7 | V16: 0.0095 | AF16: For display
B17: 3 | C17: 21 | F17: 16.8 | G17: 25.9 | I17: 4.2 | J17: 4.9 | K17: 4.55 | V17: 0.0095 | AF17: r | AG17: y | AH17: L bars | AI17: R bars
B18: 4 | C18: 23.4 | F18: 15 | G18: 33.1 | I18: 8.4 | J18: 9.7 | K18: 9.05 | V18: 0.0095 | AF18: =IF(ISNUMBER(C15),C15,NA()) -> 18.5 | AG18: 1 | AH18: =IF(AJ5,C15-F15,NA()) -> 6.5 | AI18: =IF(AK5,G15-C15,NA()) -> 8.8
B19: 5 | C19: 14.75 | F19: 8.2 | G19: 21 | I19: 6.55 | J19: 6.25 | K19: 6.4 | V19: 0.0095 | AF19: =IF(ISNUMBER(C16),C16,NA()) -> 12.55 | AG19: 2 | AH19: 2.55 | AI19: 2.85
B20: 6 | C20: 19 | F20: 8.6 | G20: 28.4 | I20: 10.4 | J20: 9.4 | K20: 9.9 | V20: 0.0095 | AF20: 21 | AG20: 3 | AH20: 4.2 | AI20: 4.9
B21: 7 | V21: 0.0095 | AF21: 23.4 | AG21: 4 | AH21: 8.4 | AI21: 9.7
B22: 8 | V22: 0.0095 | AF22: 14.75 | AG22: 5 | AH22: 6.55 | AI22: 6.25
B23: 9 | V23: 0.0095 | AF23: 19 | AG23: 6 | AH23: 10.4 | AI23: 9.4
B24: 10 | V24: 0.0095 | AG24: 7
V25: 0.0095 | AG25: 8
V26: 0.0095 | AG26: 9
V27: 0.0095 | AG27: 10
V28: 0.0095
V29: 0.0095
V30: 0.0095
